Cogmind - Beta 13 @@@ ROGUE MODE // 2024.04.04 @ 09:49:28 Player: H3-RMN Result: Establishing 0b11! Performance ------------- Evolutions (9) 4500 Regions Visited (33) 6600 Robots Destroyed (261) 1305 Value Destroyed (12011) 12011 Prototype IDs (314) 6280 Alien Tech Used (4) 800 Bonus (36225) 36225 TOTAL SCORE: 67721 Bonus ------- Pacifist 200 High Alert Combat Kills 1464 Follower Combat Kills 4490 Network Hubs Disabled 400 Aligned with FarCom 300 Met Data Miner 300 Met Zhirov 300 Met Warlord at Base 500 MAIN.C Attacked Warlord 500 Warlord Defense Kills 86 A7 Reached Mainframe 300 Met R17 at Cetus 500 Met Warlord at Research 2000 Destroyed MAIN.C Guards 500 Met MAIN.C 5000 Destroyed MAIN.C Shell 5000 Destroyed MAIN.C 10000 Met Warlord at Command 2000 Met Architect 300 Destroyed A8 300 Win 3000 Friendly Fire -1215 Cogmind --------- Core Integrity 53/1600 Matter 210/300 Energy 96/100 System Corruption 0% Temperature Cool (4) Movement Flying (29) Location 0b11 Command Parts ------- > --- POWER (1) -------- (None) > --- PROPULSION (4) --- Cooled Impulse Thruster Cooled Q-thruster > --- UTILITY (17) ----- Femtoactuators Centrium Light Armor Plating Light Regenerative Plating Graphene Brace > --- WEAPON (4) ------- Phasing Sabre > --- INVENTORY (5) ---- Experimental Biometal Medium Treads Femtoactuators Centrium Light Armor Plating Neutron Cannon Peak State ------------ > --- POWER ------------ Zero-point Reactor > --- PROPULSION ------- Experimental Biometal Heavy Treads Advanced Heavy Siege Treads > --- UTILITY ---------- Medium Storage Unit Experimental Energy Well Experimental Melee Analysis Suite Experimental Melee Analysis Suite Experimental Melee Analysis Suite Advanced Target Analyzer Experimental Core Analyzer Experimental Core Analyzer Femtoactuators Experimental Actuator Array Experimental Actuator Array Experimental Power Shielding Layered Medium Armor Plating Centrium Light Armor Plating Centrium Light Armor Plating Centrium Medium Armor Plating Graphene Brace > --- WEAPON ----------- Phasing Sabre Phasing Sabre Phasing Sabre Enhanced Force Lance > --- INVENTORY -------- Zero-point Reactor Experimental Biometal Medium Treads Cooled Impulse Thruster Cooled Q-thruster Femtoactuators Light Regenerative Plating Mini Drone Bay Greatsword [Rating: 216] Favorites ----------- Power Quantum Reactor Engine Light Ion Engine Power Core Enhanced Nuclear Core Reactor Quantum Reactor Propulsion Armored Huge Wheel Treads Centrium Heavy Treads Leg Biometal Leg Wheel Armored Huge Wheel Flight Unit Cooled Nuclear Pulse Thruster Utility Improved Hacking Suite Device Advanced Heat Sink Storage Huge Storage Unit Processor Machine Analyzer Hackware Improved Hacking Suite Protection Centrium Medium Armor Plating Weapon Mini Assault Cannon Energy Gun Advanced Variable Charge Gun Energy Cannon Advanced Plasma Cannon Ballistic Gun Advanced KE Penetrator Ballistic Cannon Mini Assault Cannon Launcher Improved Proton Missile Launcher Impact Weapon Power Maul Slashing Weapon Phasing Sabre Piercing Weapon Enhanced Force Lance Special Melee Weapon Advanced Datajack Build | -11 -10 -10 -9 -9 -9 -8 -8 -7 -7 -7 -7 -6 -6 -6 -6 -6 -6 -5 -5 -5 -5 -4 -4 -4 -4 -4 -3 -3 -3 -2 -1 -1 -1 ------- Run | Yrd Mat Min Mat Min Exi Min Mat Fac Low Low Dat Pro Fac Ext Cet Arc Hub Fac Upp Upp Zhi Pro Fac Upp Upp War Pro Res Arm Res Acc Com Ac0 Slots Evolved 18 | . . . 2 . . . 2 2 . . . . 2 . . . . 2 . . . . 2 . . . . 2 . 2 2 . . Power . | . . . . . . . . . . . . . . . . . . . . . . . . . . . . . . . . . . Propulsion 1 | . . . . . . . . . . . . . . . . . . . . . . . 1 . . . . . . . . . . Utility 15 | . . . 2 . . . 2 2 . . . . 2 . . . . 2 . . . . 1 . . . . 2 . 1 1 . . Weapon 2 | . . . . . . . . . . . . . . . . . . . . . . . . . . . . . . 1 1 . . Parts Attached 336 | . 1 . 2 2 1 3 20 7 2 1 . 1 5 6 6 12 1 60 8 2 16 . 24 5 2 9 3 14 6 8 16 76 17 Power 28 | . . . . . . . 2 1 . . . . . . 1 2 . 7 . . 2 . . 1 . . . 1 2 3 1 5 . Engine 10 | . . . . . . . 1 . . . . . . . . 1 . 1 . . . . . . . . . 1 1 2 1 2 . Core 7 | . . . . . . . 1 1 . . . . . . . . . 1 . . 1 . . 1 . . . . 1 1 . . . Reactor 11 | . . . . . . . . . . . . . . . 1 1 . 5 . . 1 . . . . . . . . . . 3 . Propulsion 51 | . . . 2 . . 2 9 1 . 1 . . 1 . . 2 . 3 . . 3 . 2 2 1 2 . 2 . 1 . 14 3 Treads 13 | . . . . . . . . . . . . . . . . 1 . 2 . . . . . 1 . . . . . . . 8 1 Leg 11 | . . . . . . . 7 . . . . . . . . . . . . . . . . . . . . . . . . 4 . Wheel 7 | . . . . . . . 2 1 . 1 . . 1 . . 1 . 1 . . . . . . . . . . . . . . . Hover . | . . . . . . . . . . . . . . . . . . . . . . . . . . . . . . . . . . Flight 20 | . . . 2 . . 2 . . . . . . . . . . . . . . 3 . 2 1 1 2 . 2 . 1 . 2 2 Utility 199 | . 1 . . 2 1 . 5 3 2 . . 1 4 6 2 6 1 37 5 2 9 . 19 . 1 4 2 11 4 3 13 44 11 Device 91 | . . . . 1 . . 1 2 2 . . . 1 2 . 3 1 22 4 2 2 . 10 . . 2 . 8 2 . 4 19 3 Storage 11 | . . . . . 1 . . . . . . . 2 1 . . . 2 . . 1 . . . . 1 . . . 1 . 2 . Processor 19 | . . . . 1 . . 1 . . . . . 1 . . . . 3 . . . . . . . 1 . . . 2 2 7 1 Hackware 22 | . . . . . . . 2 1 . . . 1 . . . 3 . 2 . . 3 . 4 . . . . 1 1 . 3 1 . Protection 56 | . 1 . . . . . 1 . . . . . . 3 2 . . 8 1 . 3 . 5 . 1 . 2 2 1 . 4 15 7 Artifact . | . . . . . . . . . . . . . . . . . . . . . . . . . . . . . . . . . . Weapon 58 | . . . . . . 1 4 2 . . . . . . 3 2 . 13 3 . 2 . 3 2 . 3 1 . . 1 2 13 3 Energy Gun 12 | . . . . . . . 2 1 . . . . . . 1 1 . 3 2 . . . . . . 2 . . . . . . . Energy Cannon 4 | . . . . . . . . . . . . . . . . . . 1 . . . . . . . . . . . . . 3 . Ballistic Gun 4 | . . . . . . . . . . . . . . . 1 1 . 1 1 . . . . . . . . . . . . . . Ballistic Cannon 8 | . . . . . . . . 1 . . . . . . 1 . . 6 . . . . . . . . . . . . . . . Launcher 2 | . . . . . . . . . . . . . . . . . . 2 . . . . . . . . . . . . . . . Special Weapon . | . . . . . . . . . . . . . . . . . . . . . . . . . . . . . . . . . . Impact Weapon 5 | . . . . . . 1 2 . . . . . . . . . . . . . . . . . . . . . . . . 2 . Slashing Weapon 18 | . . . . . . . . . . . . . . . . . . . . . 1 . 3 2 . 1 1 . . . 2 6 2 Piercing Weapon 4 | . . . . . . . . . . . . . . . . . . . . . 1 . . . . . . . . . . 2 1 Special Melee Weapon 1 | . . . . . . . . . . . . . . . . . . . . . . . . . . . . . . 1 . . . Unidentified Prototypes 28 | . . . . 1 . . . 3 . . . . . . 3 2 . 2 . 1 3 . 2 . . 7 . . 1 . . 3 . Corrupted Parts 5 | . . . . . . . 1 . . . . . . . . 1 . 2 . . . . . . . . . . . . . 1 . System Corruption 15 | . . . . . . . 7 . . . . . . . . 2 . 3 . . . . . . . . . . . . . 3 . Parts Lost 94 | . . . . . . 1 8 1 . . . 1 . 1 . . 3 34 2 . . . 1 3 . . . 2 . 1 2 22 12 Power 11 | . . . . . . . . . . . . . . . . . . 5 . . . . . 1 . . . 1 . 1 1 2 . Propulsion 16 | . . . . . . 1 4 1 . . . . . . . . . 3 . . . . 1 1 . . . . . . . 4 1 Utility 47 | . . . . . . . 2 . . . . 1 . 1 . . 3 21 1 . . . . . . . . 1 . . 1 10 6 Weapon 20 | . . . . . . . 2 . . . . . . . . . . 5 1 . . . . 1 . . . . . . . 6 5 Highest Loss Streak 12 | . . . . . . 1 6 1 . . . 1 . 1 . . 2 8 2 . . . 1 2 . . . 1 . 1 1 12 6 To Critical Strikes 1 | . . . . . . . . . . . . . . . . . . 1 . . . . . . . . . . . . . . . Average Slot Usage (%) 82 | . 1 14 25 41 50 54 48 58 61 54 53 51 56 74 81 85 85 82 87 88 76 94 94 94 93 99 100 99 98 97 98 92 68 Core 1 | . . . . . . . 2 7 7 7 7 7 6 6 4 . . . . . 1 5 5 5 5 5 5 3 . . . . . Reactor 2 | . . . . . . . . . . . . . . . 1 5 6 3 5 5 3 . . . . . . . . . . 2 2 Wheel 3 | . . . . . . . 5 14 15 8 7 7 5 6 6 6 6 1 5 5 2 . . . . . . . . . . . . Flight 4 | . . . 14 22 22 21 3 . . . . . . . . . . . . . 5 16 20 19 19 20 20 18 18 16 15 2 1 Device 15 | . . . . . . . 3 19 15 15 15 12 6 18 17 13 12 23 24 27 20 5 10 10 5 5 5 15 14 12 17 22 15 Storage 4 | . . . . . 6 11 4 . . . . . 5 6 6 6 6 5 5 5 3 5 5 5 5 5 5 4 4 4 3 5 5 Processor 9 | . . . . 8 11 11 5 . . . . . 6 6 6 6 6 10 17 16 16 16 12 10 10 14 15 13 13 15 18 20 15 Hackware 13 | . . . . . . . 1 1 7 7 7 7 9 6 6 19 19 9 5 5 8 22 25 30 30 30 30 24 22 20 16 4 . Protection 9 | . 1 14 11 11 11 . 2 . . . . . . 9 16 13 13 8 8 11 9 16 11 10 13 10 10 8 10 12 6 7 11 Energy Gun 3 | . . . . . . . 4 7 7 7 7 7 6 6 6 5 6 4 5 5 . . . . . . . . . . . . . Ballistic Cannon 3 | . . . . . . . . 6 7 7 7 7 6 6 5 6 6 4 . . . . . . . . . . . . . . . Slashing Weapon 2 | . . . . . . . . . . . . . . . . . . . . . 1 5 5 5 5 9 10 9 9 8 10 10 7 Naked Turns 74 | . 74 . . . . . . . . . . . . . . . . . . . . . . . . . . . . . . . . Heaviest Build 176 | . 3 3 3 3 8 8 91 101 100 100 100 100 116 176 146 146 136 147 138 137 122 28 34 36 32 31 30 32 32 32 35 90 83 Greatest Support 140 | 3 3 3 8 8 8 8 25 22 22 28 28 28 28 28 28 28 28 80 28 28 28 28 35 38 31 32 32 38 32 32 35 140 85 Greatest Overweight (x) 45 | . . . . . . 1 26 5 4 4 3 3 4 6 5 45 4 5 4 4 18 . . 1 1 . . . . . 2 2 . Average Overweight (x) 1 | . . . . . . . 1 4 4 3 3 3 3 4 4 27 4 2 4 4 2 . . . . . . . . . . . . Largest Inventory Capacity 25 | 5 5 5 5 5 8 8 8 5 5 5 5 5 15 25 25 25 25 25 25 25 25 10 10 10 10 10 10 10 10 10 10 10 10 Average Capacity 17 | 5 5 5 5 5 6 8 6 5 5 5 5 5 14 23 25 25 25 25 25 25 19 10 10 10 10 10 10 10 10 10 10 10 8 Most Carried 25 | . 3 2 2 5 8 8 8 5 5 5 5 5 15 25 25 25 25 25 25 25 25 10 10 10 10 10 10 10 10 10 10 10 10 Average Carried 17 | . 1 2 2 4 6 8 5 4 5 4 5 5 11 21 24 24 24 23 23 24 18 10 9 9 9 9 9 9 9 9 9 9 7 Final Capacity 25 | 5 5 5 5 5 8 8 5 5 5 5 5 5 15 25 25 25 25 25 25 25 10 10 10 10 10 10 10 10 10 10 10 10 5 Final Carried 25 | . 2 2 2 5 8 8 5 5 5 5 5 5 15 25 25 25 24 21 25 25 10 10 9 10 9 10 10 10 10 10 10 9 4 Class Distribution -------------------- 40% | Scavenger-Mutant 14% | Mutant 9% | Wizard-Sprinter 8% | Scavenger-Gladiator 6% | Scavenger-Skirmisher 4% | Hacker-Sprinter 3% | Commander-Mutant Dominant Class ---------------- Mutant | -10/Materials Mutant | -10/Mines Mutant | -9/Materials Sprinter | -9/Mines Sprinter | -9/Exiles Sprinter | -8/Mines Mutant | -8/Materials Mutant | -7/Factory Mutant | -7/Lower Caves Mutant | -7/Lower Caves Mutant | -7/Data Miner Mutant | -6/Proximity Caves Mutant | -6/Factory Commander-Mutant | -6/Extension Mutant | -6/Cetus Scavenger-Mutant | -6/Archives Scavenger-Mutant | -6/Hub_04(d) Scavenger-Skirmisher | -5/Factory Scavenger-Mutant | -5/Upper Caves Scavenger-Mutant | -5/Upper Caves Scavenger-Mutant | -5/Zhirov Hacker-Sprinter | -4/Proximity Caves Wizard-Sprinter | -4/Factory Wizard-Mutant | -4/Upper Caves Wizard-Sprinter | -4/Upper Caves Wizard-Sprinter | -4/Warlord Wizard-Sprinter | -3/Proximity Caves Wizard-Sprinter | -3/Research Wizard-Sprinter | -3/Armory Wizard-Scout | -2/Research Hacker-Ninja | -1/Access Scavenger-Gladiator | -1/Command Scavenger-Gladiator | -1/Access_0 Resources | -11 -10 -10 -9 -9 -9 -8 -8 -7 -7 -7 -7 -6 -6 -6 -6 -6 -6 -5 -5 -5 -5 -4 -4 -4 -4 -4 -3 -3 -3 -2 -1 -1 -1 ----------- Run | Yrd Mat Min Mat Min Exi Min Mat Fac Low Low Dat Pro Fac Ext Cet Arc Hub Fac Upp Upp Zhi Pro Fac Upp Upp War Pro Res Arm Res Acc Com Ac0 Matter Collected 6878 | 199 . . . 46 . 35 195 116 160 76 . 95 438 342 160 180 127 1848 194 36 171 60 390 51 45 110 30 140 20 120 145 1264 85 Remotely . | . . . . . . . . . . . . . . . . . . . . . . . . . . . . . . . . . . Salvage Created 15024 | . . . . . . 108 1150 138 178 223 . 75 171 745 50 362 501 3025 263 . 171 60 755 91 . 31 98 79 91 753 1270 3821 815 Parts 600 | . . . . . . 3 37 7 7 14 . 2 4 21 3 24 16 151 5 . 5 4 40 4 . . 6 9 2 28 44 123 41 Haulers Intercepted 14 | . . . . . . . 3 2 . . . . 1 2 . . 1 1 . . . . . . . . . . . 1 3 . . Recyclers Shooed 6 | . . . . . . . . . . . . . . . . . 1 3 . . . . . . . . . . . 1 1 . . Parts Field Recycled . | . . . . . . . . . . . . . . . . . . . . . . . . . . . . . . . . . . Retrieved Matter . | . . . . . . . . . . . . . . . . . . . . . . . . . . . . . . . . . . Parts Self-Destructed 72 | . . . . . . . . . 20 19 . 12 . . . . . . 3 . 3 4 . 3 2 . 6 . . . . . . Prevented 4 | . . . . . . . . . 3 1 . . . . . . . . . . . . . . . . . . . . . . . Kills | -11 -10 -10 -9 -9 -9 -8 -8 -7 -7 -7 -7 -6 -6 -6 -6 -6 -6 -5 -5 -5 -5 -4 -4 -4 -4 -4 -3 -3 -3 -2 -1 -1 -1 ------- Run | Yrd Mat Min Mat Min Exi Min Mat Fac Low Low Dat Pro Fac Ext Cet Arc Hub Fac Upp Upp Zhi Pro Fac Upp Upp War Pro Res Arm Res Acc Com Ac0 Combat Hostiles Destroyed 177 | . . . . . . 5 21 3 4 5 . 4 2 4 1 1 5 53 4 . . 1 15 1 . 1 3 1 1 . 8 25 9 Melee 77 | . . . . . . 2 10 . . . . . . . . . . . . . . 1 15 1 . 1 3 1 1 . 8 25 9 Guns 29 | . . . . . . . . 1 1 3 . 3 1 2 . . 1 14 3 . . . . . . . . . . . . . . Cannons 50 | . . . . . . . . 2 3 2 . 1 1 2 1 1 3 33 1 . . . . . . . . . . . . . . AOE 9 | . . . . . . . 2 . . . . . . . . . 1 6 . . . . . . . . . . . . . . . Classes Destroyed 22 | . . . . . . 3 8 2 2 . . . 1 1 . . 2 1 1 . . . . . . . . . . . . 1 . Worker 18 | . . . . . . . 3 . . . . . . . . . 2 6 . . . . . . . . . 1 . 2 1 3 . Builder 4 | . . . . . . . . . . . . . . . . . . 3 . . . . . . . . . . . 1 . . . Tunneler 3 | . . . . . . 1 . . . . . . . . . . 1 . . . . . . . . . . . . 1 . . . Hauler 14 | . . . . . . . 3 2 . . . . 1 2 . . 1 1 . . . . . . . . . . . 1 3 . . Recycler 14 | . . . . . . . . . . . . . . 2 . . . 4 . . . . . . . . . . . 4 3 1 . Mechanic 3 | . . . . . . . 1 . . . . . . . . . . 1 . . . . . . . . . . . . . 1 . Operator 16 | . . . . . . . 1 . . . . . . . . 9 . 1 . . . . 1 . . . . . . 1 1 2 . Drone 1 | . . . . . . . . . . . . . . . . . 1 . . . . . . . . . . . . . . . . Watcher 10 | . . . . . . . 1 . . . . . . . . . 1 2 . . . . . . . . . . . . 5 1 . Swarmer 37 | . . . . . . 4 2 . . 1 . 3 . . . . . 11 . . . . 6 . . 1 3 . . . 6 . . Cutter 1 | . . . . . . . . . . . . . . . . . . . . . . . . . . . . . . . . 1 . Grunt 56 | . . . . . . . 15 1 1 2 . . 1 3 . . 3 20 2 . . . 2 . . . . . . . 1 5 . Brawler 4 | . . . . . . . . 1 . . . . . . . . . 3 . . . . . . . . . . . . . . . Duelist 2 | . . . . . . . . 1 . . . . . . . . . 1 . . . . . . . . . . . . . . . Protector 1 | . . . . . . . 1 . . . . . . . . . . . . . . . . . . . . . . . . . . Sentry 15 | . . . . . . . 2 . 1 . . . . 1 . 1 . 2 1 . . . 2 1 . . . . 1 . . 3 . Specialist 1 | . . . . . . . . . . . . . 1 . . . . . . . . . . . . . . . . . . . . Hunter 13 | . . . . . . 1 1 . . . . 1 . . . . 1 4 . . . . . . . . . . . . . 5 . Programmer 29 | . . . . . . . . . 1 1 . . . . . . . 12 . . . 1 5 . . . . 1 . . 1 7 . Heavy 1 | . . . . . . . . . . . . . . . . . 1 . . . . . . . . . . . . . . . . Behemoth 1 | . . . . . . . . . 1 . . . . . . . . . . . . . . . . . . . . . . . . Cetus Guard 1 | . . . . . . . . . . . . . . . 1 . . . . . . . . . . . . . . . . . . Enhanced Grunt 8 | . . . . . . . . . . . . . . . . . . . . . . . . . . . . . . . . . 8 Combat Programmer 2 | . . . . . . . . . . . . . . . . . . . . . . . . . . . . . . . . 2 . Decomposer 1 | . . . . . . . . . . . . . . . . . . . . . . . . 1 . . . . . . . . . Savage 3 | . . . . . . . . . . . . . . 2 . . . . . . . . . . . . . . . . . 1 . Butcher 1 | . . . . . . . . . . 1 . . . . . . . . . . . . . . . . . . . . . . . Mutant 1 | . . . . . . . . . . . . . . . . . . . 1 . . . . . . . . . . . . . . Best Kill Streak 9 | . . . . . . 6 9 2 1 2 . 3 1 3 1 3 4 8 2 . . 1 3 1 . 1 3 1 1 7 6 6 6 Combat Bots Only 7 | . . . . . . 5 6 2 1 2 . 3 1 3 1 1 4 7 2 . . 1 3 1 . 1 3 1 1 . 6 5 6 Max Kills in Single Turn 4 | . . . . . . 1 2 1 1 1 . 1 1 2 1 1 4 4 2 . . 1 1 1 . 1 2 1 1 1 1 2 1 Gunslinging 1 | . . . . . . . . . . . . . . . . . . . 1 . . . . . . . . . . . . . . Exploded 2 | . . . . . . . 2 . . . . . . . . . 1 2 . . . . . . . . . . . . . . . Melee 2 | . . . . . . 1 1 . . . . . . . . . . . . . . 1 1 1 . 1 2 1 1 . 1 2 1 Uniques/NPCs Destroyed 2 | . . . . . . . . . . . . . . . . . . . . . . . . . . . . . . . . 1 1 MAIN.C (-1/Command) A8 (-1/Access_0) Combat | -11 -10 -10 -9 -9 -9 -8 -8 -7 -7 -7 -7 -6 -6 -6 -6 -6 -6 -5 -5 -5 -5 -4 -4 -4 -4 -4 -3 -3 -3 -2 -1 -1 -1 -------- Run | Yrd Mat Min Mat Min Exi Min Mat Fac Low Low Dat Pro Fac Ext Cet Arc Hub Fac Upp Upp Zhi Pro Fac Upp Upp War Pro Res Arm Res Acc Com Ac0 Hostile Shots Fired 1693 | . 46 . 2 . . 38 115 17 21 6 . 45 20 53 22 7 29 469 32 . . 48 78 28 34 6 15 18 19 . 48 231 246 Missed 522 | . 24 . 2 . . 13 39 5 7 2 . 14 5 12 9 2 4 101 10 . . 26 36 9 23 4 7 10 9 . 24 56 69 Damage Taken 26596 | . 211 . . . . 250 1212 213 234 49 . 306 240 776 188 210 1103 7127 418 . . 519 731 394 168 56 185 181 202 73 561 5338 5651 Core 3698 | . 166 . . . . 132 459 14 15 . . 32 . 65 . . 89 527 51 . . 108 220 36 65 56 44 96 46 . 90 581 806 Absorbed by Shields 622 | . . . . . . . . 59 68 13 . 72 . 39 134 . . 102 79 . . . 56 . . . . . . . . . . Reduced by Siege Mode 257 | . . . . . . . . . . . . . . . . . . 257 . . . . . . . . . . . . . . . Redirected to Shielding 1361 | . . . . . . . . . . . . . . . . . . . . . . 138 34 54 . . 22 60 55 . 168 725 105 Ignored by Resistances 1145 | . . . . . . . . . . . . . . . . . . 21 . . . . . . . . . . . . . 715 409 Regen/Repaired (Parts) 2129 | . . . . . . . . . . . . . 78 . . . . . . . . . 739 . . 77 . 495 3 . 291 426 20 Core Remaining (%) 61 | 100 . 33 . . . 67 16 . . . . 91 . . . . 81 . . . . 31 . . . . 63 . 89 100 . . 3 Volleys Fired 492 | . . . . . . . 1 19 14 11 . 15 23 44 15 93 22 214 17 1 . . . . . . . . . . . 3 . Largest 2 | . . . . . . . 2 2 2 2 . 2 2 2 2 2 2 2 2 1 . . . . . . . . . . . 1 . Hottest 150 | . . . . . . . 130 130 104 104 . 104 104 104 104 128 128 138 120 80 . . . . . . . . . . . 150 . Shots Fired 795 | . . . . . . . 2 38 28 22 . 30 35 88 27 96 37 355 32 3 . . . . . . . . . . . 2 . Gun 403 | . . . . . . . 2 22 14 11 . 15 12 44 12 86 15 139 28 3 . . . . . . . . . . . . . Cannon 389 | . . . . . . . . 16 14 11 . 15 23 44 15 10 22 213 4 . . . . . . . . . . . . 2 . Launcher 3 | . . . . . . . . . . . . . . . . . . 3 . . . . . . . . . . . . . . . Special . | . . . . . . . . . . . . . . . . . . . . . . . . . . . . . . . . . . Kinetic 377 | . . . . . . . . 16 14 11 . 15 23 44 15 10 22 191 16 . . . . . . . . . . . . . . Thermal 415 | . . . . . . . 2 22 14 11 . 15 12 44 12 86 15 161 16 3 . . . . . . . . . . . 2 . Explosive . | . . . . . . . . . . . . . . . . . . . . . . . . . . . . . . . . . . Electromagnetic 3 | . . . . . . . . . . . . . . . . . . 3 . . . . . . . . . . . . . . . Robot Hit Streak 15 | . . . . . . . 2 7 8 5 . 3 4 12 11 9 15 12 14 . . . . . . . . . . . . . . Robot Miss Streak 7 | . . . . . . . . 3 4 4 . 5 4 4 4 6 4 7 2 . . . . . . . . . . . . . . Penetration Max 2 | . . . . . . . . . . . . . . . . . . 2 . . . . . . . . . . . . . . . Secondary Targets 1 | . . . . . . . . . . . . . . . . . . . 1 . . . . . . . . . . . . . . Max Gunslinging Chain 1 | . . . . . . . . . . . . . . . . . . . 1 . . . . . . . . . . . . . . Shots Hit Robots 1060 | . . . . . . 9 54 22 19 11 . 12 14 57 16 56 23 219 23 . 6 5 34 2 . 3 4 6 8 30 62 279 86 Core Hits 470 | . . . . . . 1 17 6 11 8 . 9 11 23 7 23 19 119 9 . 3 1 17 1 . 1 3 3 3 9 22 104 40 Critical Kills 16 | . . . . . . . 3 . . . . . . . . . . 12 1 . . . . . . . . . . . . . . Critical Parts Destroyed 27 | . . . . . . 1 9 . . . . . . . . . . 8 2 . . . . . . . . . . . . 4 3 Critical Strikes 108 | . . . . . . 1 13 1 . . . . 1 4 1 . 1 27 4 . . . 4 . . . . 1 1 2 3 26 18 Burn 5 | . . . . . . . 1 1 . . . . . 3 . . . . . . . . . . . . . . . . . . . Destroy 24 | . . . . . . . . . . . . . . . . . . 20 4 . . . . . . . . . . . . . . Blast 11 | . . . . . . . . . . . . . 1 1 1 . 1 7 . . . . . . . . . . . . . . . Smash 21 | . . . . . . 1 12 . . . . . . . . . . . . . . . . . . . . . . . . 4 4 Sever 44 | . . . . . . . . . . . . . . . . . . . . . . . 4 . . . . 1 1 2 3 22 11 Impale 3 | . . . . . . . . . . . . . . . . . . . . . . . . . . . . . . . . . 3 Melee Attacks 793 | . . . . . . 17 70 . . . . . . . . . . . . . 6 7 59 3 . 7 9 21 17 42 113 328 94 Impact 107 | . . . . . . 17 70 . . . . . . . . . . . . . . . . . . . . . . . . 11 9 Slashing 661 | . . . . . . . . . . . . . . . . . . . . . 4 7 59 3 . 7 9 21 17 35 109 314 76 Piercing 11 | . . . . . . . . . . . . . . . . . . . . . 2 . . . . . . . . . . . 9 Sneak Attacks 64 | . . . . . . 2 10 . . . . . . . . . . . . . . 1 2 1 . 1 . 1 . 18 14 14 . Combat Hostiles 3 | . . . . . . . 1 . . . . . . . . . . . . . . . 1 . . 1 . . . . . . . Follow-up Attacks 200 | . . . . . . . 4 . . . . . . . . . . . . . . . . . . . 1 1 1 4 14 134 41 Damage Inflicted 50438 | . 17 . . . . 517 3440 585 491 282 . 316 346 1584 425 1605 1648 8504 630 . 498 302 1961 229 . 186 169 265 364 1351 3113 17527 4083 Guns 6561 | . . . . . . . 27 285 213 123 . 139 104 563 118 1353 342 2739 555 . . . . . . . . . . . . . . Cannons 7995 | . . . . . . . . 300 278 159 . 177 242 994 307 252 355 4856 75 . . . . . . . . . . . . . . Explosions 2224 | . . . . . . . 376 . . . . . . . . . 951 897 . . . . . . . . . . . . . . . Melee 33583 | . . . . . . 517 3018 . . . . . . . . . . . . . 498 302 1961 229 . 186 169 265 364 1351 3113 17527 4083 Ramming 75 | . 17 . . . . . 19 . . . . . . 27 . . . 12 . . . . . . . . . . . . . . . Kinetic 7670 | . . . . . . . . 300 278 159 . 177 242 994 307 252 355 4238 368 . . . . . . . . . . . . . . Thermal 7428 | . . . . . . . 244 285 213 123 . 139 104 563 118 1353 384 3640 262 . . . . . . . . . . . . . . Explosive 159 | . . . . . . . 159 . . . . . . . . . . . . . . . . . . . . . . . . . . Electromagnetic 1523 | . . . . . . . . . . . . . . . . . 909 614 . . . . . . . . . . . . . . . Impact 4414 | . . . . . . 517 3018 . . . . . . . . . . . . . . . . . . . . . . . . 418 461 Slashing 28650 | . . . . . . . . . . . . . . . . . . . . . 349 302 1961 229 . 186 169 265 364 1351 3113 17109 3252 Piercing 519 | . . . . . . . . . . . . . . . . . . . . . 149 . . . . . . . . . . . 370 Highest Corruption 29 | . . . . . . . 7 1 2 . . . . 2 2 2 13 27 27 27 27 29 2 2 2 2 . . . . 2 20 . Average Corruption 10 | . . . . . . . 7 1 1 . . . . 2 2 1 7 14 27 27 27 27 1 2 2 2 . . . . 1 11 . Corruption Purged 36 | . . . . . . . . . 2 . . . . . . 4 . 5 . . . . . . . . . . . . . 25 . Corruption Blocked 6 | . . . . . . . . . . . . . . . . . . 6 . . . . . . . . . . . . . . . Effects 331 | . . . . . . . 13 . 4 . . . . 10 3 2 . 113 43 33 17 13 11 8 3 . . . . . . 58 . Message Errors 87 | . . . . . . . 7 . 2 . . . . 4 . 2 . 30 9 11 1 2 3 2 . . . . . . . 14 . Matter Fused 90 | . . . . . . . 1 . 2 . . . . 4 1 . . 30 7 8 9 . 4 3 2 . . . . . . 19 . Heat Flow Errors 22 | . . . . . . . . . . . . . . 1 . . . 8 5 1 1 . 1 1 . . . . . . . 4 . Energy Discharges 38 | . . . . . . . 1 . . . . . . . . . . 10 7 7 3 1 . 1 . . . . . . . 8 . Parts Rejected 6 | . . . . . . . . . . . . . . . . . . 4 . . . . . . . . . . . . . 2 . Parts Fused 7 | . . . . . . . . . . . . . . . . . . 2 1 . . . 1 . 1 . . . . . . 2 . Data Loss (minor) 33 | . . . . . . . 3 . . . . . . 1 1 . . 8 7 3 2 1 2 . . . . . . . . 5 . Data Loss (major) 13 | . . . . . . . 1 . . . . . . . . . . 5 2 1 1 1 . . . . . . . . . 2 . Misfires 11 | . . . . . . . . . . . . . . . 1 . . 6 2 2 . . . . . . . . . . . . . Alerts 8 | . . . . . . . . . . . . . . . . . . 4 2 . . . . 1 . . . . . . . 1 . Misdirections 12 | . . . . . . . . . . . . . . . . . . 4 . . . 8 . . . . . . . . . . . Weapon Failures 4 | . . . . . . . . . . . . . . . . . . 2 1 . . . . . . . . . . . . 1 . Overload Shots 2 | . . . . . . . . . . . . . . . . . . . . . . . . . . . . . . . . 2 . Overflow Damage 4556 | . . . . . . 255 974 . . . . . . 13 . . 186 364 . . . 80 307 141 . 7 . . . 209 363 1459 198 Projectiles 151 | . . . . . . . . . . . . . . 13 . . . 138 . . . . . . . . . . . . . . . Explosions 412 | . . . . . . . . . . . . . . . . . 186 226 . . . . . . . . . . . . . . . Melee 3993 | . . . . . . 255 974 . . . . . . . . . . . . . . 80 307 141 . 7 . . . 209 363 1459 198 Knockbacks 66 | . . . . . . 1 4 3 2 . . 2 2 7 . . 2 38 . . . . . . . . . . . . . 2 3 Impact 11 | . . . . . . 1 4 . . . . . . 1 . . . . . . . . . . . . . . . . . 2 3 Kinetic 50 | . . . . . . . . 3 2 . . 2 2 6 . . 1 34 . . . . . . . . . . . . . . . Secondary 5 | . . . . . . . . . . . . . . . . . 1 4 . . . . . . . . . . . . . . . Self-Inflicted Damage 374 | . 7 . . . . . 9 . . . . . . 13 . . 102 243 . . . . . . . . . . . . . . . Shots 4 | . . . . . . . . . . . . . . . . . 1 3 . . . . . . . . . . . . . . . Rammed 15 | . 5 . . . . . 6 . . . . . . 1 . . . 3 . . . . . . . . . . . . . . . Targets Rammed 15 | . 5 . . . . . 6 . . . . . . 1 . . . 3 . . . . . . . . . . . . . . . Kicked . | . . . . . . . . . . . . . . . . . . . . . . . . . . . . . . . . . . Crushed . | . . . . . . . . . . . . . . . . . . . . . . . . . . . . . . . . . . Highest Temperature 318 | . . . . . . . 57 144 72 48 . 168 114 168 . 224 57 318 192 63 98 6 158 251 . 11 . . . . . 228 . Average Temperature 61 | . . . . . . . 26 55 28 24 . 56 32 41 . 52 31 91 54 43 75 5 77 75 . 11 . . . . . 65 . Received Heat Transfer 2876 | . 42 . . . . 45 630 68 32 . . 80 72 220 4 . 27 1065 74 . . 99 36 109 . 27 . 9 27 9 36 165 . Siege Activations 4 | . . . . . . . . . . . . . . . . . . 4 . . . . . . . . . . . . . . . Total Turns 109 | . . . . . . . . . . . . . . . . . . 109 . . . . . . . . . . . . . . . Longest Duration 60 | . . . . . . . . . . . . . . . . . . 60 . . . . . . . . . . . . . . . Robots Corrupted 1 | . . . . . . . . . . . . . . . . . . 1 . . . . . . . . . . . . . . . Combat Hostiles . | . . . . . . . . . . . . . . . . . . . . . . . . . . . . . . . . . . Parts Fried 32 | . . . . . . 7 15 . . . . . . . . . 5 4 . . . . . . . . . . . . . . 1 Impact Corruptions 59 | . . . . . . 11 34 . . . . . . . . . . 1 . . . . . . . . . . . . . 8 5 Robots Melted . | . . . . . . . . . . . . . . . . . . . . . . . . . . . . . . . . . . Combat Hostiles . | . . . . . . . . . . . . . . . . . . . . . . . . . . . . . . . . . . Parts Melted 8 | . . . . . . . . . . 1 . . . 4 . 2 . 1 . . . . . . . . . . . . . . . Heat Transferred 10674 | . . . . . . . 248 676 426 250 . 286 222 1443 240 1924 494 4095 370 . . . . . . . . . . . . . . Parts Sabotaged . | . . . . . . . . . . . . . . . . . . . . . . . . . . . . . . . . . . Parts Stolen . | . . . . . . . . . . . . . . . . . . . . . . . . . . . . . . . . . . Parts Stripped . | . . . . . . . . . . . . . . . . . . . . . . . . . . . . . . . . . . Power Chain Reactions 1 | . . . . . . . . . . . . . . . . . 1 . . . . . . . . . . . . . . . . Alert | -11 -10 -10 -9 -9 -9 -8 -8 -7 -7 -7 -7 -6 -6 -6 -6 -6 -6 -5 -5 -5 -5 -4 -4 -4 -4 -4 -3 -3 -3 -2 -1 -1 -1 ------- Run | Yrd Mat Min Mat Min Exi Min Mat Fac Low Low Dat Pro Fac Ext Cet Arc Hub Fac Upp Upp Zhi Pro Fac Upp Upp War Pro Res Arm Res Acc Com Ac0 Peak Influence 1399 | . 90 34 28 55 . 161 1190 925 . . . . 385 388 613 524 1399 1392 . . . . 303 . . . . 170 246 276 577 362 . Initial 666 | . . 34 13 10 . . 62 541 . . . . 41 114 181 245 . 666 . . . . 46 . . . . 47 53 129 165 259 . Average 216 | . 14 34 19 40 . 72 745 745 . . . . 79 191 404 39 827 598 . . . . 110 . . . . 83 126 217 218 140 . Maximum Alert Level 4 | . . . . . . . 4 3 . . . . 1 1 2 2 4 4 . . . . 1 . . . . . 1 1 2 1 . Low Security (%) 64 | 100 100 100 100 100 . 100 15 . . . . . 88 53 7 92 9 20 . . . . 82 . . . . 100 94 44 44 45 . Level 1 19 | . . . . . . . 1 . . . . . 11 46 46 4 3 22 . . . . 17 . . . . . 5 55 41 54 . Level 2 6 | . . . . . . . 14 25 . . . . . . 46 3 24 18 . . . . . . . . . . . . 13 . . Level 3 8 | . . . . . . . 61 74 . . . . . . . . 41 25 . . . . . . . . . . . . . . . Level 4 2 | . . . . . . . 6 . . . . . . . . . 21 13 . . . . . . . . . . . . . . . Level 5 . | . . . . . . . . . . . . . . . . . . . . . . . . . . . . . . . . . . High Security . | . . . . . . . . . . . . . . . . . . . . . . . . . . . . . . . . . . Max Security . | . . . . . . . . . . . . . . . . . . . . . . . . . . . . . . . . . . Squads Dispatched 91 | . 1 . . . . . 8 11 . . . . 7 3 . . 8 15 . . . . 10 . . . . 4 5 3 6 10 . Investigation 28 | . 1 . . . . . 1 2 . . . . 4 . . . 1 4 . . . . 5 . . . . 2 4 . 2 2 . Extermination 19 | . . . . . . . . 1 . . . . 1 . . . . 4 . . . . 5 . . . . 1 . . 2 5 . Reinforcement 31 | . . . . . . . 4 3 . . . . 2 3 . . 6 3 . . . . . . . . . 1 1 3 2 3 . Assault 8 | . . . . . . . 2 2 . . . . . . . . . 4 . . . . . . . . . . . . . . . Garrison 5 | . . . . . . . 1 3 . . . . . . . . 1 . . . . . . . . . . . . . . . . Intercept . | . . . . . . . . . . . . . . . . . . . . . . . . . . . . . . . . . . Searches Triggered . | . . . . . . . . . . . . . . . . . . . . . . . . . . . . . . . . . . Data Miner Redirects 1 | . . . . . . . . . . . . . . . . . . 1 . . . . . . . . . . . . . . . Construction Impeded 4 | . . . . . . . . . . . . . . 2 . . 1 1 . . . . . . . . . . . . . . . Haulers Reinforced 5 | . . . . . . . . 2 . . . . . . . . 2 1 . . . . . . . . . . . . . . . Active Scanning Responses . | . . . . . . . . . . . . . . . . . . . . . . . . . . . . . . . . . . Cargo Convoy Interrupts . | . . . . . . . . . . . . . . . . . . . . . . . . . . . . . . . . . . Stealth | -11 -10 -10 -9 -9 -9 -8 -8 -7 -7 -7 -7 -6 -6 -6 -6 -6 -6 -5 -5 -5 -5 -4 -4 -4 -4 -4 -3 -3 -3 -2 -1 -1 -1 --------- Run | Yrd Mat Min Mat Min Exi Min Mat Fac Low Low Dat Pro Fac Ext Cet Arc Hub Fac Upp Upp Zhi Pro Fac Upp Upp War Pro Res Arm Res Acc Com Ac0 Distress Signals 47 | . . . . . . . 1 . . . . . . 2 2 . 4 6 . . . . 5 . . 1 . 1 . 4 1 20 . Communications Jammed 176 | . . . . . . . . 2 . . . . . . . . . 48 . . . . 16 . . . . 22 . . 32 56 . Distress Signals 176 | . . . . . . . . 2 . . . . . . . . . 48 . . . . 16 . . . . 22 . . 32 56 . Times Spotted 645 | . 13 . 2 3 . 11 46 21 11 15 . 11 12 38 16 44 36 97 4 . . 13 45 5 14 25 3 16 12 7 44 63 18 Peak Tracking Total 14 | . 11 . 2 3 . 4 8 5 4 7 . 4 5 4 5 2 12 7 2 . . 9 14 4 10 13 3 7 11 3 11 6 4 Tactical Retreats 49 | . 1 . . 1 . 1 6 . . 1 . . . 3 . . . 7 . . . 2 5 . 2 4 . 4 3 . 7 2 . Traps | -11 -10 -10 -9 -9 -9 -8 -8 -7 -7 -7 -7 -6 -6 -6 -6 -6 -6 -5 -5 -5 -5 -4 -4 -4 -4 -4 -3 -3 -3 -2 -1 -1 -1 ------- Run | Yrd Mat Min Mat Min Exi Min Mat Fac Low Low Dat Pro Fac Ext Cet Arc Hub Fac Upp Upp Zhi Pro Fac Upp Upp War Pro Res Arm Res Acc Com Ac0 Traps Triggered 10 | . 1 . . . . . 1 . . . . . . 5 . . . 1 . . . . 1 . . . . . . . . 1 . Indirectly . | . . . . . . . . . . . . . . . . . . . . . . . . . . . . . . . . . . Trap Hack Attempts . | . . . . . . . . . . . . . . . . . . . . . . . . . . . . . . . . . . Triggered . | . . . . . . . . . . . . . . . . . . . . . . . . . . . . . . . . . . Disarmed . | . . . . . . . . . . . . . . . . . . . . . . . . . . . . . . . . . . Reprogrammed 14 | . . . . . . . . . . . . . . . . . . . . . . . . . . . . . 8 . 6 . . Reused . | . . . . . . . . . . . . . . . . . . . . . . . . . . . . . . . . . . Traps Extracted . | . . . . . . . . . . . . . . . . . . . . . . . . . . . . . . . . . . Installed . | . . . . . . . . . . . . . . . . . . . . . . . . . . . . . . . . . . Triggered 20 | . . . . . . . . . . 1 . . . 1 . . . 1 . . . . . . . 17 . . . . . . . Objects Rigged 3 | . . . . . . . 2 . . . . . . . . . 1 . . . . . . . . . . . . . . . . Exploded 3 | . . . . . . . 2 . . . . . . . . . 1 . . . . . . . . . . . . . . . . Machines | -11 -10 -10 -9 -9 -9 -8 -8 -7 -7 -7 -7 -6 -6 -6 -6 -6 -6 -5 -5 -5 -5 -4 -4 -4 -4 -4 -3 -3 -3 -2 -1 -1 -1 ---------- Run | Yrd Mat Min Mat Min Exi Min Mat Fac Low Low Dat Pro Fac Ext Cet Arc Hub Fac Upp Upp Zhi Pro Fac Upp Upp War Pro Res Arm Res Acc Com Ac0 Machines Disabled 55 | . . . . . . . 5 3 . . . . 2 1 2 3 14 18 1 . . . . . . . . . . 1 . 2 3 Max in Single Turn 10 | . . . . . . . 2 . . . . . . . . 1 6 10 1 . . . . . . . . . . 1 . 1 1 Garrison Access 14 | . . . . . . . 1 . . . . . . . . . 2 3 . . . . 1 . . . . 2 . 1 4 . . Network Hub 2 | . . . . . . . . . . . . . . . . . 2 . . . . . . . . . . . . . . . . Machines Repaired . | . . . . . . . . . . . . . . . . . . . . . . . . . . . . . . . . . . Machines Dismantled . | . . . . . . . . . . . . . . . . . . . . . . . . . . . . . . . . . . Machines Sabotaged . | . . . . . . . . . . . . . . . . . . . . . . . . . . . . . . . . . . Overloaded Fab Kills . | . . . . . . . . . . . . . . . . . . . . . . . . . . . . . . . . . . Hacking | -11 -10 -10 -9 -9 -9 -8 -8 -7 -7 -7 -7 -6 -6 -6 -6 -6 -6 -5 -5 -5 -5 -4 -4 -4 -4 -4 -3 -3 -3 -2 -1 -1 -1 --------- Run | Yrd Mat Min Mat Min Exi Min Mat Fac Low Low Dat Pro Fac Ext Cet Arc Hub Fac Upp Upp Zhi Pro Fac Upp Upp War Pro Res Arm Res Acc Com Ac0 Machines Accessed 152 | . . . 1 1 2 . 4 5 . 1 3 . 9 3 1 . 5 26 1 . 4 . 20 1 . 8 . 12 9 4 17 15 . Terminals 73 | . . . 1 . . . 3 4 . 1 . . 3 3 1 . 3 12 . . . . 11 . . . . 5 5 2 8 11 . Fabricators 15 | . . . . . . . . . . . . . 3 . . . . 3 . . . . 3 . . . . 2 3 . 1 . . Repair Stations 11 | . . . . . . . 1 . . . . . 1 . . . . 1 . . . . 1 . . . . 1 1 . 2 3 . Recycling Units 9 | . . . . . . . . . . . . . 1 . . . . 3 . . . . 2 . . . . 1 . . 1 1 . Scanalyzers 10 | . . . . . . . . . . . . . 1 . . . . 4 . . . . 2 . . . . 1 . 1 1 . . Garrison Access 14 | . . . . . . . . 1 . . . . . . . . 2 3 . . . . 1 . . . . 2 . 1 4 . . Total Hacks 724 | . . . 1 1 5 . 11 16 . 1 24 . 24 4 2 . 18 179 1 . 14 . 138 1 . 21 . 58 47 21 79 58 . Successful 530 | . . . 1 1 5 . 6 5 . 1 24 . 12 2 1 . 7 121 1 . 14 . 110 1 . 21 . 46 41 14 62 34 . Failed 191 | . . . . . . . 5 11 . . . . 12 2 1 . 11 58 . . . . 27 . . . . 12 5 7 16 24 . Catastrophic 30 | . . . . . . . . 3 . . . . 3 1 . . . 11 . . . . 2 . . . . 3 . 1 1 5 . Database Lockouts 3 | . . . . . . . . . . . . . . . . . . . . . . . 1 . . . . . 1 . 1 . . Manual 248 | . . . 1 . 1 . 4 6 . . . . 3 2 1 . 3 61 . . . . 60 . . 1 . 22 23 6 25 29 . Terminals 416 | . . . 1 . . . 10 14 . 1 . . 8 4 2 . 12 103 . . . . 86 . . . . 32 36 13 48 46 . Fabricators 64 | . . . . . . . . . . . . . 11 . . . . 9 . . . . 19 . . . . 7 9 . 9 . . Repair Stations 40 | . . . . . . . 1 . . . . . 2 . . . . 5 . . . . 7 . . . . 7 2 . 9 7 . Recycling Units 38 | . . . . . . . . . . . . . 1 . . . . 14 . . . . 9 . . . . 5 . . 4 5 . Scanalyzers 75 | . . . . . . . . . . . . . 2 . . . . 44 . . . . 16 . . . . 5 . 6 2 . . Garrison Access 24 | . . . . . . . . 2 . . . . . . . . 6 4 . . . . 1 . . . . 2 . 2 7 . . Terminal Hacks 266 | . . . . 1 5 . 2 5 . 1 24 . 2 2 1 . 4 42 1 . 14 . 52 1 . 21 . 19 21 6 27 15 . Record 36 | . . . . . 4 . . . . 1 6 . . . . . . . . . 6 . . . . 19 . . . . . . . Part Schematic 51 | . . . . . . . . . . . 11 . . . . . . 8 . . . . 22 . . . . 5 2 . 3 . . Robot Schematic 8 | . . . . . . . . 1 . . 4 . . . . . 1 . . . . . . . . . . 1 1 . . . . Robot Analysis 11 | . . . . . . . 1 1 . . . . . . . . 1 . . . 4 . . . . . . 1 . . 1 2 . Prototype ID Bank 28 | . . . . . . . 1 1 . . 3 . . . . . . 7 . . 4 . 8 . . . . . 1 . 3 . . Open Door 9 | . . . . 1 . . . . . . . . 1 1 1 . . . 1 . . . . 1 . 2 . . . . . 1 . Open DSF 1 | . . . . . . . . . . . . . . . . . . . . . . . . . . . . . . 1 . . . Level Access Points 6 | . . . . . . . . . . . . . . . . . . 1 . . . . 1 . . . . . 1 1 1 1 . Branch Access Points 7 | . . . . . . . . 1 . . . . 1 . . . . 1 . . . . 1 . . . . 1 . 1 1 . . Emergency Access Points 5 | . . . . . . . . . . . . . . . . . . 1 . . . . . . . . . 1 3 . . . . Machine Index 5 | . . . . . . . . . . . . . . . . . . . . . . . 1 . . . . 1 1 . 1 1 . Terminal Index 2 | . . . . . . . . . . . . . . . . . . 1 . . . . . . . . . 1 . . . . . Fabricator Index 1 | . . . . . . . . . . . . . . . . . . 1 . . . . . . . . . . . . . . . Repair Station Index 1 | . . . . . . . . . . . . . . . . . . . . . . . . . . . . . 1 . . . . Scanalyzer Index 1 | . . . . . . . . . . . . . . . . . . . . . . . . . . . . 1 . . . . . Garrison Index 3 | . . . . . . . . . . . . . . . . . . 1 . . . . . . . . . 1 . 1 . . . Alert Level 12 | . . . . . . . . . . . . . . . . . . 5 . . . . 2 . . . . . 2 . 1 2 . Unreport Threat 13 | . . . . . . . . . . . . . . 1 . . . 4 . . . . 1 . . . . 1 . . 4 2 . Locate Traps 15 | . . . . . . . . 1 . . . . . . . . 1 3 . . . . 4 . . . . 2 2 . 2 . . Reprogram Traps 3 | . . . . . . . . . . . . . . . . . . . . . . . . . . . . . 2 . 1 . . Dispatch Records 1 | . . . . . . . . . . . . . . . . . . . . . . . 1 . . . . . . . . . . Maintenance Status 1 | . . . . . . . . . . . . . . . . . . 1 . . . . . . . . . . . . . . . Patrol Status 1 | . . . . . . . . . . . . . . . . . . . . . . . . . . . . . . . . 1 . Extermination Status 1 | . . . . . . . . . . . . . . . . . . 1 . . . . . . . . . . . . . . . Recall Investigation 4 | . . . . . . . . . . . . . . . . . . . . . . . 1 . . . . 1 1 . . 1 . Recall Extermination 4 | . . . . . . . . . . . . . . . . . . . . . . . 2 . . . . 1 . . 1 . . Recall Reinforcements 2 | . . . . . . . . . . . . . . . . . . 1 . . . . . . . . . . 1 . . . . Hauler Manifests 4 | . . . . . . . . . . . . . . . . . . 1 . . . . 1 . . . . . 1 . 1 . . Registered Components 5 | . . . . . . . . . . . . . . . . . . 1 . . . . 1 . . . . . . 1 1 1 . Registered Prototypes 3 | . . . . . . . . . . . . . . . . . . 1 . . . . 1 . . . . . . 1 . . . Zone Layout 19 | . . . . . . . . . . . . . . . . . 1 3 . . . . 5 . . . . 1 2 . 6 1 . Derelict Proto ID Bank 1 | . . . . . 1 . . . . . . . . . . . . . . . . . . . . . . . . . . . . Disengage Seal 2 | . . . . . . . . . . . . . . . . . . . . . . . . . . . . . . . . 2 . Fabricator Hacks 36 | . . . . . . . . . . . . . 6 . . . . 6 . . . . 9 . . . . 2 5 . 8 . . Load Schematic 21 | . . . . . . . . . . . . . 4 . . . . 3 . . . . 5 . . . . 1 4 . 4 . . Build 15 | . . . . . . . . . . . . . 2 . . . . 3 . . . . 4 . . . . 1 1 . 4 . . Repair Station Hacks 31 | . . . . . . . 1 . . . . . 2 . . . . 1 . . . . 6 . . . . 6 2 . 7 6 . Scan Component 16 | . . . . . . . . . . . . . 1 . . . . 1 . . . . 3 . . . . 3 1 . 4 3 . Repair 14 | . . . . . . . . . . . . . 1 . . . . . . . . . 3 . . . . 3 1 . 3 3 . Refit 1 | . . . . . . . 1 . . . . . . . . . . . . . . . . . . . . . . . . . . Recycling Unit Hacks 13 | . . . . . . . . . . . . . . . . . . 5 . . . . 3 . . . . 2 . . 2 1 . Report Inventory 6 | . . . . . . . . . . . . . . . . . . 3 . . . . 1 . . . . 1 . . 1 . . Retrieve Components 7 | . . . . . . . . . . . . . . . . . . 2 . . . . 2 . . . . 1 . . 1 1 . Scanalyzer 71 | . . . . . . . . . . . . . . . . . . 42 . . . . 16 . . . . 5 . 6 2 . . Insert Component 34 | . . . . . . . . . . . . . . . . . . 20 . . . . 8 . . . . 2 . 3 1 . . Analyze 37 | . . . . . . . . . . . . . . . . . . 22 . . . . 8 . . . . 3 . 3 1 . . Garrison Access Hacks 13 | . . . . . . . . . . . . . . . . . 2 3 . . . . 1 . . . . 2 . 1 4 . . Seal Access 13 | . . . . . . . . . . . . . . . . . 2 3 . . . . 1 . . . . 2 . 1 4 . . Unauthorized Hacks 100 | . . . 1 . . . 3 . . . . . 2 . . . 1 22 . . . . 23 . . . . 10 13 1 12 12 . Terminals 62 | . . . 1 . . . 3 . . . . . . . . . 1 14 . . . . 13 . . . . 3 9 . 9 9 . Track 24 | . . . . . . . . . . . . . . . . . . 8 . . . . 5 . . . . 1 3 . 4 3 . Assimilate 11 | . . . 1 . . . 2 . . . . . . . . . . . . . . . 2 . . . . 1 1 . 2 2 . Botnet 18 | . . . . . . . . . . . . . . . . . . 5 . . . . 3 . . . . 1 4 . 2 3 . Detonate 2 | . . . . . . . 1 . . . . . . . . . 1 . . . . . . . . . . . . . . . . Disrupt 3 | . . . . . . . . . . . . . . . . . . . . . . . 2 . . . . . . . . 1 . Operators 4 | . . . . . . . . . . . . . . . . . . 1 . . . . 1 . . . . . 1 . 1 . . Fabricators 17 | . . . . . . . . . . . . . 2 . . . . 1 . . . . 5 . . . . 4 4 . 1 . . Report 1 | . . . . . . . . . . . . . . . . . . . . . . . . . . . . 1 . . . . . Prioritize 5 | . . . . . . . . . . . . . 1 . . . . . . . . . 2 . . . . 1 . . 1 . . Liberate 2 | . . . . . . . . . . . . . . . . . . . . . . . . . . . . 1 1 . . . . Haulers 4 | . . . . . . . . . . . . . 1 . . . . 1 . . . . 1 . . . . 1 . . . . . Recompile 5 | . . . . . . . . . . . . . . . . . . . . . . . 2 . . . . . 3 . . . . Repair Stations . | . . . . . . . . . . . . . . . . . . . . . . . . . . . . . . . . . . Recycling Units 20 | . . . . . . . . . . . . . . . . . . 7 . . . . 5 . . . . 3 . . 2 3 . Reject 8 | . . . . . . . . . . . . . . . . . . 3 . . . . 2 . . . . 1 . . 1 1 . Recyclers 4 | . . . . . . . . . . . . . . . . . . 1 . . . . 1 . . . . 1 . . . 1 . Mask 8 | . . . . . . . . . . . . . . . . . . 3 . . . . 2 . . . . 1 . . 1 1 . Scanalyzers . | . . . . . . . . . . . . . . . . . . . . . . . . . . . . . . . . . . Garrison Access 1 | . . . . . . . . . . . . . . . . . . . . . . . . . . . . . . 1 . . . Watchers 1 | . . . . . . . . . . . . . . . . . . . . . . . . . . . . . . 1 . . . Data Cores Recovered 3 | . . . . . . . . . . . . . . . . . . 1 . . . . 1 . . . . . . . 1 . . Used 1 | . . . . . . . . . . . . . . . . . . . . . . . . . . . . . . . 1 . . Hacking Detections 98 | . . . 1 . . . 2 5 . . . . 8 2 . . 4 20 . . . . 15 . . . . 8 5 2 13 13 . Full Trace Events 22 | . . . . . . . 1 2 . . . . 4 . . . 1 4 . . . . 3 . . . . 2 1 . 2 2 . Feedback Events 4 | . . . . . . . . 1 . . . . . . . . . . . . . . . . . . . 1 . . 1 1 . Corruption 1 | . . . . . . . . 1 . . . . . . . . . . . . . . . . . . . . . . . . . Hackware Fried 3 | . . . . . . . . . . . . . . . . . . . . . . . . . . . . 1 . . 1 1 . Feedback Blocked . | . . . . . . . . . . . . . . . . . . . . . . . . . . . . . . . . . . Robot Schematics Acquired 8 | . . . . . . . . 1 . . 4 . . . . . 1 . . . . . . . . . . 1 1 . . . . Robots Built 1 | . . . . . . . . . . . . . . . . . . . . . . . 1 . . . . . . . . . . Authchips . | . . . . . . . . . . . . . . . . . . . . . . . . . . . . . . . . . . Time 93 | . . . . . . . . . . . . . . . . . . . . . . . 93 . . . . . . . . . . Total Robot Build Rating 7 | . . . . . . . . . . . . . . . . . . . . . . . 7 . . . . . . . . . . Part Schematics Acquired 80 | . . . . . . . . . . . 11 . . . . . . 24 . . . . 29 . . . . 7 2 3 4 . . Parts Built 15 | . . . . . . . . . . . . . 2 . . . . 4 . . . . 3 . . . . 1 1 . 4 . . Authchips 7 | . . . . . . . . . . . . . 1 . . . . . . . . . 2 . . . . . 1 . 3 . . Time 1032 | . . . . . . . . . . . . . 253 . . . . 257 . . . . 232 . . . . 55 62 . 173 . . Total Part Build Rating 108 | . . . . . . . . . . . . . 12 . . . . 27 . . . . 21 . . . . 9 7 . 32 . . Parts Repaired 14 | . . . . . . . . . . . . . 1 . . . . . . . . . 3 . . . . 3 1 . 3 3 . Time 482 | . . . . . . . . . . . . . 44 . . . . . . . . . 110 . . . . 88 45 . 93 102 . Parts Recycled . | . . . . . . . . . . . . . . . . . . . . . . . . . . . . . . . . . . Recycled Matter . | . . . . . . . . . . . . . . . . . . . . . . . . . . . . . . . . . . Retrieved Matter . | . . . . . . . . . . . . . . . . . . . . . . . . . . . . . . . . . . Retrieved Components 16 | . . . . . . . . . . . . . . . . . . 5 . . . . 4 . . . . 2 . . 3 2 . Parts Scanalyzed 30 | . . . . . . . . . . . . . . . . . . 17 . . . . 7 . . . . 2 . 3 1 . . Part Schematics Acquired 30 | . . . . . . . . . . . . . . . . . . 17 . . . . 7 . . . . 2 . 3 1 . . Parts Damaged 6 | . . . . . . . . . . . . . . . . . . 3 . . . . 1 . . . . 1 . 1 . . . Bothacking | -11 -10 -10 -9 -9 -9 -8 -8 -7 -7 -7 -7 -6 -6 -6 -6 -6 -6 -5 -5 -5 -5 -4 -4 -4 -4 -4 -3 -3 -3 -2 -1 -1 -1 ------------ Run | Yrd Mat Min Mat Min Exi Min Mat Fac Low Low Dat Pro Fac Ext Cet Arc Hub Fac Upp Upp Zhi Pro Fac Upp Upp War Pro Res Arm Res Acc Com Ac0 Used RIF Installer . | . . . . . . . . . . . . . . . . . . . . . . . . . . . . . . . . . . Robots Hacked 12 | . . . . . . . . . . . . . . . . . . . . . . . . . . . . . . 7 2 3 . Non-combat 4 | . . . . . . . . . . . . . . . . . . . . . . . . . . . . . . 1 2 1 . Combat 8 | . . . . . . . . . . . . . . . . . . . . . . . . . . . . . . 6 . 2 . Robot Hacks Applied 12 | . . . . . . . . . . . . . . . . . . . . . . . . . . . . . . 7 2 3 . parse_system 9 | . . . . . . . . . . . . . . . . . . . . . . . . . . . . . . 7 . 2 . find_fabricator 1 | . . . . . . . . . . . . . . . . . . . . . . . . . . . . . . . 1 . . find_recycling 2 | . . . . . . . . . . . . . . . . . . . . . . . . . . . . . . . 1 1 . Relay Couplers Released 8 | . . . . . . . 1 . . . . . . . . . 1 6 . . . . . . . . . . . . . . . Machine Destruction 5 | . . . . . . . 1 . . . . . . . . . 1 3 . . . . . . . . . . . . . . . Programmers 3 | . . . . . . . . . . . . . . . . . . 3 . . . . . . . . . . . . . . . Fabnet Peak Effective % . | . . . . . . . . . . . . . . . . . . . . . . . . . . . . . . . . . . Robots Rewired 15 | . . . . . . . . . . . . . . 14 . . . . . . . . 1 . . . . . . . . . . Allies Hacked . | . . . . . . . . . . . . . . . . . . . . . . . . . . . . . . . . . . Hacks Repelled . | . . . . . . . . . . . . . . . . . . . . . . . . . . . . . . . . . . Allies | -11 -10 -10 -9 -9 -9 -8 -8 -7 -7 -7 -7 -6 -6 -6 -6 -6 -6 -5 -5 -5 -5 -4 -4 -4 -4 -4 -3 -3 -3 -2 -1 -1 -1 -------- Run | Yrd Mat Min Mat Min Exi Min Mat Fac Low Low Dat Pro Fac Ext Cet Arc Hub Fac Upp Upp Zhi Pro Fac Upp Upp War Pro Res Arm Res Acc Com Ac0 Total Allies 44 | . . . . 3 . . 1 . . . . . . 27 2 . . 3 . . . . 3 . . . . 1 1 . 1 2 . Largest Group 12 | . . . . 3 3 3 1 . . . . . . 12 4 4 3 3 . . . . 1 . . . . 1 1 . 1 2 . Highest-Rated Group 382 | . . . . 40 40 40 26 . . . . . . 326 382 382 215 93 . . . . 65 . . . . 26 26 . 45 71 . Highest-Rated Ally 159 | . . . . 16 16 16 26 . . . . . . 159 159 159 96 31 . . . . 65 . . . . 26 26 . 45 45 . Total Orders 42 | . . . . . . . 2 7 2 2 . 4 3 1 3 . 4 1 . . . . 7 . . . . 3 . . . . 3 STAY 4 | . . . . . . . . . . . . . . . . . . . . . . . 4 . . . . . . . . . . FOLLOW 2 | . . . . . . . . . . . . . . . . . . . . . . . 2 . . . . . . . . . . AID 1 | . . . . . . . . . . . . . . . . . . . . . . . 1 . . . . . . . . . . EXPLORE 7 | . . . . . . . . . . . . . . . . . . 1 . . . . . . . . . 3 . . . . 3 RETURN 28 | . . . . . . . 2 7 2 2 . 4 3 1 3 . 4 . . . . . . . . . . . . . . . . Ally Attacks 900 | . . . . . . 8 29 66 47 69 . 64 73 286 96 24 129 9 . . . . . . . . . . . . . . . Total Damage 20457 | . . . . . . 68 680 1961 697 1089 . 913 1461 6547 2093 717 4082 149 . . . . . . . . . . . . . . . Kills 153 | . . . . . . . 11 19 8 8 . 7 14 39 14 3 29 1 . . . . . . . . . . . . . . . Allies Corrupted 1 | . . . . . . . . . . . . . . . . . . . . . . . 1 . . . . . . . . . . Allies Melted . | . . . . . . . . . . . . . . . . . . . . . . . . . . . . . . . . . . Intel | -11 -10 -10 -9 -9 -9 -8 -8 -7 -7 -7 -7 -6 -6 -6 -6 -6 -6 -5 -5 -5 -5 -4 -4 -4 -4 -4 -3 -3 -3 -2 -1 -1 -1 ------- Run | Yrd Mat Min Mat Min Exi Min Mat Fac Low Low Dat Pro Fac Ext Cet Arc Hub Fac Upp Upp Zhi Pro Fac Upp Upp War Pro Res Arm Res Acc Com Ac0 Robot Analysis Total 11 | . . . . . . . 1 1 . . . . . . . . 1 . . . 4 . . . . . . 1 . . 1 2 . Derelict Logs Recovered 7 | . . 1 . 1 . . . . . . . 1 . . . . . . . . . 1 . 2 1 . . . . . . . . Drone Launches 138 | . . . . . . . 10 23 13 8 . 14 13 22 8 . 7 1 . . . . . . . . . 3 . . . 12 4 Drone Recoveries 78 | . . . . . . . 9 18 9 8 . 12 7 2 6 . 4 1 . . . . . . . . . 1 . . . . 1 Exploration | -11 -10 -10 -9 -9 -9 -8 -8 -7 -7 -7 -7 -6 -6 -6 -6 -6 -6 -5 -5 -5 -5 -4 -4 -4 -4 -4 -3 -3 -3 -2 -1 -1 -1 ------------- Run | Yrd Mat Min Mat Min Exi Min Mat Fac Low Low Dat Pro Fac Ext Cet Arc Hub Fac Upp Upp Zhi Pro Fac Upp Upp War Pro Res Arm Res Acc Com Ac0 Turns Passed 33745 | 13 82 11 27 246 183 238 760 901 555 589 112 433 811 2103 368 10654 366 3811 849 644 346 89 2133 406 144 649 96 696 208 231 1203 3493 295 Spaces Moved 20258 | 27 145 22 66 497 396 275 435 537 311 357 78 249 382 1035 178 600 165 1400 486 388 229 222 2229 385 416 1100 256 1063 489 619 2380 2522 319 Core 560 | 27 145 22 16 . . . 7 . . . . . . . . 342 . . . . . . . . . . . . . . 1 . . Treads 1835 | . . . . . . . . . . . . . . . . . . 753 . . . . . 18 . . . . . . . 962 102 Legs 619 | . . . . . . . 96 . . . . . . . . . . . . . . . . . . . . . . . . 523 . Wheels 5308 | . . . . . . . 141 537 311 357 78 249 382 1035 178 258 165 647 486 388 96 . . . . . . . . . . . . Hover . | . . . . . . . . . . . . . . . . . . . . . . . . . . . . . . . . . . Flight 11936 | . . . 50 497 396 275 191 . . . . . . . . . . . . . 133 222 2229 367 416 1100 256 1063 489 619 2379 1037 217 Fastest Speed 20 | 50 50 50 32 32 32 32 37 140 145 145 145 145 145 145 160 160 160 160 160 160 32 32 24 20 27 23 23 20 26 23 23 21 23 Average Speed 118 | 50 50 50 36 32 32 33 105 148 145 145 145 145 156 161 164 1382 160 204 160 160 121 32 27 95 30 24 23 24 26 25 23 91 60 Slowest Speed 2300 | 50 50 50 50 32 32 115 1350 155 145 145 145 145 160 190 175 2300 160 240 160 160 1295 32 28 240 99 27 23 26 26 26 150 250 135 Overloaded Moves 245 | . . . . . . . . . . . . . . . . . . . . . . . 54 43 . . . 8 . . . 1 139 Propulsion Burnouts . | . . . . . . . . . . . . . . . . . . . . . . . . . . . . . . . . . . Robots Hopped 58 | . . . 1 3 . 1 . . . . . . . . . . . . . . . 2 20 3 3 . . 9 . . 14 1 1 Cave-ins Triggered . | . . . . . . . . . . . . . . . . . . . . . . . . . . . . . . . . . . Teleports 2 | . . . . . . . . . . . . . . . . . . . . . . . . . . . . . . . . 1 1 Exploration Rate (%) 50 | 4 36 7 10 93 71 62 57 20 54 66 69 50 11 97 68 87 34 46 63 59 62 41 36 65 59 94 46 31 40 19 50 68 27 Regions Visited 33 Branch Regions 23 Pre-discovered Areas 9 | . . 1 . 2 1 . . . . . 1 . . . . . . . . . 3 1 . . . . . . . . . . . Known Exits Taken 10 | . . . . . . . . 1 . . . . 1 . . . . 1 . . . 1 1 . . . 1 1 1 1 1 . . Unknown Exits Taken 23 | 1 1 1 1 1 1 1 1 . 1 1 1 1 . 1 1 1 1 . 1 1 1 . . 1 1 1 . . . . . 1 . Scrap Searched 19 | . . . . 2 . 1 . . 1 4 . 1 . . . . . . 3 1 . . . 3 2 . 1 . . . . . . Spaces Dug 80 | . . . . . . 1 2 . . . . . 4 . . . . 4 . 1 . . 17 . . 2 . 10 7 4 18 10 . Terrain Destroyed 594 | . . . . . . 1 67 2 1 3 . 3 5 3 1 10 303 115 10 2 . . 17 . . 2 . 10 7 4 18 10 . Melee 71 | . . . . . . 1 2 . . . . . . . . . . . . . . . 17 . . 2 . 10 7 4 18 10 . Projectile 113 | . . . . . . . . 2 1 3 . 3 5 3 1 10 5 68 10 2 . . . . . . . . . . . . . AOE 410 | . . . . . . . 65 . . . . . . . . . 298 47 . . . . . . . . . . . . . . . Terrain Rammed . | . . . . . . . . . . . . . . . . . . . . . . . . . . . . . . . . . . Walls Destroyed . | . . . . . . . . . . . . . . . . . . . . . . . . . . . . . . . . . . Machines Disabled . | . . . . . . . . . . . . . . . . . . . . . . . . . . . . . . . . . . Actions | -11 -10 -10 -9 -9 -9 -8 -8 -7 -7 -7 -7 -6 -6 -6 -6 -6 -6 -5 -5 -5 -5 -4 -4 -4 -4 -4 -3 -3 -3 -2 -1 -1 -1 --------- Run | Yrd Mat Min Mat Min Exi Min Mat Fac Low Low Dat Pro Fac Ext Cet Arc Hub Fac Upp Upp Zhi Pro Fac Upp Upp War Pro Res Arm Res Acc Com Ac0 Total 28723 | 26 153 21 66 579 452 387 630 605 386 407 77 290 559 1385 234 2863 231 1954 527 411 289 226 3628 414 431 1477 283 1477 561 693 2971 3640 390 Wait 6551 | . . . . 82 52 92 90 33 60 35 . 26 138 94 8 2143 40 240 2 13 11 . 1280 17 15 349 15 374 42 23 492 785 . Move 20112 | 26 144 21 63 490 395 272 434 536 310 356 77 248 381 1034 177 599 164 1399 485 387 228 218 2190 378 409 1099 255 1044 488 618 2352 2519 316 Hop 54 | . . . 1 3 . 1 . . . . . . . . . . . . . . . 1 18 3 3 . . 9 . . 13 1 1 Pick Up 183 | . 3 . . 1 1 . 5 4 . 1 . . 9 19 12 4 2 23 10 3 11 . 12 5 . 4 1 9 5 1 7 26 5 Fast Attach 189 | . . . 2 2 1 3 18 5 . 1 . 1 3 2 3 8 . 33 4 2 11 . 10 . 1 8 . 6 2 6 4 42 11 Attach 90 | . 1 . . . . . . 2 . . . . 1 2 1 1 1 18 3 . 6 . 10 3 1 1 . 5 1 . 7 19 7 Detach 17 | . . . . 1 . . . . . . . . . . . . . . . . 1 . 4 1 1 1 . 1 . . 1 4 2 Swap 61 | . . . . . . . 2 . 2 . . . 1 2 2 3 . 9 1 1 . . 4 2 . . 3 3 3 2 5 16 . Drop 198 | . . . . . 3 2 10 6 . 3 . . 3 7 16 12 1 13 5 4 15 . 16 2 1 10 1 8 5 5 2 48 . Fire 492 | . . . . . . . 1 19 14 11 . 15 23 44 15 93 22 214 17 1 . . . . . . . . . . . 3 . Melee 546 | . . . . . . 17 64 . . . . . . . . . . . . . 6 7 59 3 . 5 8 18 15 38 88 170 48 Ram 15 | . 5 . . . . . 6 . . . . . . 1 . . . 3 . . . . . . . . . . . . . . . Kick . | . . . . . . . . . . . . . . . . . . . . . . . . . . . . . . . . . . Crush 2 | . . . . . . . . . . . . . . . . . . 2 . . . . . . . . . . . . . . . Escape Stasis 58 | . . . . . . . . . . . . . . 40 . . . . . . . . 18 . . . . . . . . . . Rewire 150 | . . . . . . . . . . . . . . 140 . . . . . . . . 7 . . . . . . . . 3 . Trap . | . . . . . . . . . . . . . . . . . . . . . . . . . . . . . . . . . . Miscellaneous 5 | . . . . . . . . . . . . . . . . . 1 . . . . . . . . . . . . . . 4 . Route ------- -11/Scrapyard -10/Materials (discovered 2 exits: *Mat / [*Min]) -10/Mines -9/Materials -9/Mines (discovered 3 exits: *Mat x2 / *Exi) -9/Exiles (discovered 2 exits: [*Min x2]) -8/Mines -8/Materials -7/Factory (discovered 3 exits: Sto / *Low x2) -7/Lower Caves -7/Lower Caves (discovered 2 exits: *Fac / *Dat) -7/Data Miner -6/Proximity Caves -6/Factory (discovered 4 exits: Low x2 / *Ext x2) -6/Extension (discovered 3 exits: *Fac x2 / *Cet) -6/Cetus (discovered 2 exits: *Fac / [*Arc]) -6/Archives (discovered 3 exits: *Fac / *Hub x2) -6/Hub_04(d) (discovered 2 exits: *Fac x2) -5/Factory (discovered 6 exits: Fac x4 / *Upp x2) -5/Upper Caves -5/Upper Caves (discovered 2 exits: *Fac / *Zhi) -5/Zhirov -4/Proximity Caves -4/Factory (discovered 6 exits: *Res x4 / *Upp x2) -4/Upper Caves -4/Upper Caves (discovered 2 exits: *Res / *War) -4/Warlord -3/Proximity Caves -3/Research (discovered 3 exits: *Arm / *Tes x2) -3/Armory (discovered 2 exits: *Res x2) -2/Research (discovered 5 exits: *Acc x3 / Qua x2) -1/Access (discovered 2 exits: Sur / *Com) -1/Command (discovered 3 exits: Sur x2 / [*Ac0]) -1/Access_0 0b11 Command History --------- Turn | Location | Event 2 | -11/Scrapyard | Discovered new exit (range 16) 14 | -11/Scrapyard | Entered Materials 56 | -10/Materials | Discovered new exit (range 16) 88 | -10/Materials | Core integrity fell below 50% 92 | -10/Materials | Discovered new exit (range 8) 96 | -10/Materials | Entered Mines 101 | -10/Mines | Discovered new exit (range 5) 105 | -10/Mines | Learned location of Mines (-9) 107 | -10/Mines | Entered Materials 107 | -9/Materials | Evolved 2 slots: Utility x2 130 | -9/Materials | Discovered new exit (range 13) 134 | -9/Materials | Entered Mines 142 | -9/Mines | Discovered new exit (range 7) 159 | -9/Mines | Found the Drone Emporium 159 | -9/Mines | Found Prototype Device 159 | -9/Mines | Identified Decoy Drone Bay 176 | -9/Mines | Discovered new exit (range 5) 212 | -9/Mines | Learned location of Storage (-7) 221 | -9/Mines | Received a Rocket Launcher from a helpful Derelict 232 | -9/Mines | Learned location of Zion (-6) 242 | -9/Mines | Assisted by bots powering up and referring to "LRC-V3" 298 | -9/Mines | Deemed a non-threat by the Exiles lab entrance 298 | -9/Mines | Discovered new exit (range 5) 380 | -9/Mines | Entered Exiles 380 | -9/Exiles | Accompanied by 3 allies 385 | -9/Exiles | Discovered new exit (range 15) 388 | -9/Exiles | Met 8R-AWN 394 | -9/Exiles | Met EX-HEX 405 | -9/Exiles | Met EX-DEC 410 | -9/Exiles | Build established: Sprinter 416 | -9/Exiles | Met EX-BIN 421 | -9/Exiles | Aligned with FarCom system 421 | -9/Exiles | Given EX-Vault access code 429 | -9/Exiles | Opened EX-Vault 436 | -9/Exiles | Warned to stay clear of 0b10 Research branches 478 | -9/Exiles | Found Army-in-a-Box 508 | -9/Exiles | Discovered new exit (range 10) 563 | -9/Exiles | Left Exiles lab with Army-in-a-Box 563 | -9/Exiles | Entered Mines 563 | -8/Mines | Accompanied by 3 allies 798 | -8/Mines | Discovered new exit (range 7) 801 | -8/Mines | Entered Materials 801 | -8/Materials | Evolved 2 slots: Utility x2 925 | -8/Materials | Garrison activated, responded to threat 1069 | -8/Materials | Build established: Mutant 1201 | -8/Materials | First assault squad dispatched 1203 | -8/Materials | Core integrity fell below 50% 1245 | -8/Materials | Core integrity fell below 20% 1245 | -8/Materials | Released all parts (3) 1271 | -8/Materials | Lost 6 parts (2n2u2w) 1503 | -8/Materials | Discovered new exit (range 16) 1561 | -8/Materials | Entered Factory 1561 | -7/Factory | Evolved 2 slots: Utility x2 1639 | -7/Factory | Build established: Scavenger-Mutant 1961 | -7/Factory | First assault squad dispatched 2177 | -7/Factory | Garrison activated, responded to threat 2231 | -7/Factory | Build established: Mutant 2272 | -7/Factory | Identified exit to Storage 2272 | -7/Factory | Identified exit to Lower Caves 2462 | -7/Factory | Entered Lower Caves 2698 | -7/Lower Caves | Spotted B-75 Beast 2720 | -7/Lower Caves | Destroyed B-75 Beast 2751 | -7/Lower Caves | Lost 3 allies 2989 | -7/Lower Caves | Discovered new exit (range 6) 2998 | -7/Lower Caves | Attracted the attention of an 0b10 checkpoint 3017 | -7/Lower Caves | Entered another Lower Caves area 3042 | -7/Lower Caves | Discovered new exit (range 15) 3131 | -7/Lower Caves | P-60 Hacker assimilated allied 99-D3E(b) 3560 | -7/Lower Caves | Discovered new exit (range 3) 3606 | -7/Lower Caves | Entered Data Miner 3606 | -7/Data Miner | Discovered new exit (range 6) 3634 | -7/Data Miner | Met Data Miner 3666 | -7/Data Miner | Learned location of Section 7 (-2) 3666 | -7/Data Miner | Acquired the access code to Warlord's prototype stash 3685 | -7/Data Miner | Received God Mode back door access code from Data Miner 3718 | -7/Data Miner | Entered Proximity Caves 3792 | -6/Proximity Caves | Attracted the attention of an 0b10 checkpoint 3872 | -6/Proximity Caves | Learned Factory terminal intel 4131 | -6/Proximity Caves | Discovered new exit (range 8) 4151 | -6/Proximity Caves | Entered Factory 4151 | -6/Factory | Evolved 2 slots: Utility x2 4152 | -6/Factory | Loaded intel: 28 terminal locations 4407 | -6/Factory | Repaired Arm. Huge Wheel 4507 | -6/Factory | Identified exit to Lower Caves 4507 | -6/Factory | Identified exit to Extension 4685 | -6/Factory | Fabricated Combat Drone Bay? 4904 | -6/Factory | Fabricated Combat Drone Bay (x1) 4913 | -6/Factory | Lost 6 allies 4962 | -6/Factory | Entered Extension 5024 | -6/Extension | Lost 3 allies 5148 | -6/Extension | Rescued a captive Derelict 5149 | -6/Extension | Rescued a captive Derelict 5269 | -6/Extension | Rescued a captive Derelict 5270 | -6/Extension | Rescued a captive Derelict 5313 | -6/Extension | Rescued a captive Derelict 5314 | -6/Extension | Rescued a captive Derelict 5394 | -6/Extension | Rescued a captive Derelict 5443 | -6/Extension | Spotted B-75 Beast 5458 | -6/Extension | Spotted B-75 Beast 5481 | -6/Extension | Allies destroyed B-75 Beast 5499 | -6/Extension | Allies destroyed B-75 Beast 5525 | -6/Extension | Lost 15 allies 5570 | -6/Extension | Rescued a captive Derelict 5605 | -6/Extension | Rescued a captive Derelict 5605 | -6/Extension | Rescued a captive Derelict 5697 | -6/Extension | Lost 3 allies 5901 | -6/Extension | Lost 6 allies 6040 | -6/Extension | Rescued a captive Derelict 6041 | -6/Extension | Rescued a captive Derelict 6188 | -6/Extension | Build established: Commander-Mutant 6258 | -6/Extension | Discovered new exit (range 10) 6259 | -6/Extension | Discovered new exit (range 6) 6362 | -6/Extension | Disrupted transfer network 6523 | -6/Extension | Discovered new exit (range 3) 6586 | -6/Extension | Lost 4 allies 6699 | -6/Extension | Rescued A7 6912 | -6/Extension | Lost 3 allies 7065 | -6/Extension | Entered Cetus 7065 | -6/Cetus | Accompanied by 3 allies (A7) 7070 | -6/Cetus | Acquired a Cetus Manufacturing Module code from A7 7087 | -6/Cetus | Spotted Cetus Guard 7087 | -6/Cetus | Spotted Cetus Guard 7092 | -6/Cetus | Allies destroyed Cetus Guard 7095 | -6/Cetus | Allies destroyed Cetus Guard 7102 | -6/Cetus | Allies destroyed Cetus Guard 7104 | -6/Cetus | Spotted Cetus Guard 7107 | -6/Cetus | Discovered new exit (range 66) 7111 | -6/Cetus | Allies destroyed Cetus Guard 7190 | -6/Cetus | Build established: Mutant 7219 | -6/Cetus | Escorted A7 to Cetus Mainframe 7232 | -6/Cetus | Started Cetus Manufacturing Module 7257 | -6/Cetus | Manufactured an Enhanced Grunt 7282 | -6/Cetus | Manufactured an Enhanced Grunt 7292 | -6/Cetus | Spotted Cetus Guard 7292 | -6/Cetus | Spotted Cetus Guard 7294 | -6/Cetus | Discovered new exit (range 22) 7295 | -6/Cetus | Spotted Cetus Guard 7297 | -6/Cetus | Allies destroyed Cetus Guard 7299 | -6/Cetus | Allies destroyed Cetus Guard 7303 | -6/Cetus | Cetus Manufacturing Module disabled 7304 | -6/Cetus | Destroyed Cetus Guard 7312 | -6/Cetus | Allies destroyed Cetus Guard 7326 | -6/Cetus | Met Revision 17 7433 | -6/Cetus | Entered Archives 7433 | -6/Archives | Accompanied by 4 allies (A7) 7438 | -6/Archives | Received a hacking code to weaken MAIN.C 7609 | -6/Archives | Build established: Scavenger-Mutant 7722 | -6/Archives | Discovered new exit (range 15) 7808 | -6/Archives | Discovered new exit (range 16) 8039 | -6/Archives | Discovered new exit (range 15) 18087 | -6/Archives | Entered Hub_04(d) 18087 | -6/Hub_04(d) | Accompanied by 3 allies 18102 | -6/Hub_04(d) | Discovered new exit (range 16) 18106 | -6/Hub_04(d) | Garrison activated, responded to threat 18257 | -6/Hub_04(d) | Discovered new exit (range 15) 18267 | -6/Hub_04(d) | Network Hub disabled 18417 | -6/Hub_04(d) | Network Hub disabled 18437 | -6/Hub_04(d) | Spotted Lightning 18438 | -6/Hub_04(d) | Spotted Lightning 18438 | -6/Hub_04(d) | Spotted Lightning 18440 | -6/Hub_04(d) | Spotted Lightning 18440 | -6/Hub_04(d) | Spotted Lightning 18440 | -6/Hub_04(d) | Spotted Lightning 18446 | -6/Hub_04(d) | System corruption reached 10% 18453 | -6/Hub_04(d) | Entered Factory 18453 | -5/Factory | Evolved 2 slots: Utility x2 18555 | -5/Factory | Identified exit to Upper Caves 18607 | -5/Factory | Identified exit to Factory 18760 | -5/Factory | Build established: Hacker-Mutant 19333 | -5/Factory | Lost 7 parts (1p1n5u) 19481 | -5/Factory | Found Launcher Loader 19547 | -5/Factory | Build established: Scavenger-Skirmisher 19816 | -5/Factory | System corruption reached 10% 19941 | -5/Factory | Fabricated Adv. Hacking Suite? 20533 | -5/Factory | Lost 3 parts (1p1u1w) 20853 | -5/Factory | First assault squad dispatched 21046 | -5/Factory | Destroyed 7 combat bots 21348 | -5/Factory | Fabricated Q-thruster? 21602 | -5/Factory | Fabricated Exp. Utility Shielding (x1) 21614 | -5/Factory | Lost 8 parts (1p1n5u1w) 21781 | -5/Factory | Incoming assault squad redirected 21835 | -5/Factory | Core integrity fell below 50% 21866 | -5/Factory | Build established: Skirmisher 21869 | -5/Factory | Lost 4 parts (1p2u1w) 22215 | -5/Factory | Build established: Scavenger-Mutant 22264 | -5/Factory | Entered Upper Caves 22367 | -5/Upper Caves | Attracted the attention of an 0b10 checkpoint 22588 | -5/Upper Caves | Attacked by a delusional Derelict stockpiling parts 22715 | -5/Upper Caves | Discovered new exit (range 5) 23113 | -5/Upper Caves | Entered another Upper Caves area 23190 | -5/Upper Caves | Discovered exit to Factory (range 6) 23209 | -5/Upper Caves | Found Alien Artifact 23209 | -5/Upper Caves | Identified Core Expander 23209 | -5/Upper Caves | Installed Core Expander, added new Propulsion slot 23661 | -5/Upper Caves | Discovered new exit (range 9) 23757 | -5/Upper Caves | Entered Zhirov 23758 | -5/Zhirov | Discovered new exit (range 3) 23787 | -5/Zhirov | Met Zhirov 23821 | -5/Zhirov | Learned location of Quarantine (-2) 23821 | -5/Zhirov | Learned location of Testing (-3) 23821 | -5/Zhirov | Learned location of Command (-1) 23845 | -5/Zhirov | Zhirov requested help retrieving the SGEMP Prototype 23885 | -5/Zhirov | Found Alien Artifact 23885 | -5/Zhirov | Identified Integrated Reactor 23885 | -5/Zhirov | Installed Integrated Reactor, increased core energy generation (+10) 24089 | -5/Zhirov | Found Alien Artifact 24103 | -5/Zhirov | Entered Proximity Caves 24181 | -4/Proximity Caves | Attracted the attention of an 0b10 checkpoint 24189 | -4/Proximity Caves | Discovered exit to Factory (range 9) 24192 | -4/Proximity Caves | Entered Factory 24192 | -4/Factory | Evolved 2 slots: Propulsion x1, Utility x1 24220 | -4/Factory | Identified exit to Upper Caves 24295 | -4/Factory | Fabricated M-36 Artificer? 24299 | -4/Factory | Build established: Hacker-Sprinter 24678 | -4/Factory | Repaired Centrium Medium Armor Plating? 24828 | -4/Factory | Repaired Exp. Utility Shielding 24846 | -4/Factory | Repaired Weight Redist. System 24894 | -4/Factory | Identified exit to Research 24996 | -4/Factory | Fabricated Exp. Hacking Suite (x1) 25094 | -4/Factory | Fabricated Exp. System Shield? 25284 | -4/Factory | Build established: Wizard-Sprinter 25401 | -4/Factory | Identified Transdimensional Reconstructor 25594 | -4/Factory | Fabricated Centrium Greatsword (x1) 25987 | -4/Factory | Spotted B-86 Titan 26002 | -4/Factory | Central database locked down 26325 | -4/Factory | Entered Upper Caves 26435 | -4/Upper Caves | Learned Research emergency access door positions 26554 | -4/Upper Caves | Encountered a Warlord checkpoint 26597 | -4/Upper Caves | Build established: Wizard-Mutant 26657 | -4/Upper Caves | Attracted the attention of an 0b10 checkpoint 26727 | -4/Upper Caves | Discovered new exit (range 6) 26731 | -4/Upper Caves | Entered another Upper Caves area 26735 | -4/Upper Caves | Learned 4 Research zone layouts 26740 | -4/Upper Caves | Discovered exit to Research (range 13) 26783 | -4/Upper Caves | Attracted the attention of an 0b10 checkpoint 26826 | -4/Upper Caves | Encountered a Warlord checkpoint 26872 | -4/Upper Caves | Discovered new exit (range 9) 26875 | -4/Upper Caves | Entered Warlord 26884 | -4/Warlord | System corruption cleaned by Quarantine Array 26918 | -4/Warlord | Visited the Vortex Lab 26918 | -4/Warlord | Found Prototype Energy Gun 26918 | -4/Warlord | Identified Vortex Rail 26921 | -4/Warlord | Found Prototype Energy Gun 26921 | -4/Warlord | Identified Vortex Shotgun 26924 | -4/Warlord | Found Vortex Shotgun 26940 | -4/Warlord | Warlord's base attacked by MAIN.C 26971 | -4/Warlord | Met Warlord 26975 | -4/Warlord | Opened Warlord's prototype stash 26976 | -4/Warlord | Found Prototype Device 26976 | -4/Warlord | Identified System Purifier 26986 | -4/Warlord | Found Prototype Device 26986 | -4/Warlord | Identified Exp. Cloaking Device 26989 | -4/Warlord | Found Prototype Processor 26989 | -4/Warlord | Identified Exp. Armor Integrity Analyzer 27054 | -4/Warlord | Build established: Wizard-Sprinter 27066 | -4/Warlord | Opened side exit 27290 | -4/Warlord | Warlord forces counterattacked 27340 | -4/Warlord | Discovered new exit (range 11) 27340 | -4/Warlord | Spotted Striker 27444 | -4/Warlord | Lost 11 allies 27523 | -4/Warlord | Spotted Executioner 27524 | -4/Warlord | Entered Proximity Caves 27536 | -3/Proximity Caves | Spotted B-86 Titan 27617 | -3/Proximity Caves | Discovered exit to Research (range 6) 27620 | -3/Proximity Caves | Entered Research 27620 | -3/Research | Evolved 2 slots: Utility x2 27621 | -3/Research | Identified exit to Armory 27651 | -3/Research | Identified exit to Testing 27848 | -3/Research | Found Enh. Force Lance 27884 | -3/Research | Repaired Exp. Utility Shielding 27906 | -3/Research | Fabricated Femtoactuators (x1) 27921 | -3/Research | Repaired Centrium Medium Armor Plating 27948 | -3/Research | Repaired Exp. Propulsion Shielding 27954 | -3/Research | Exp. System Shield fried by hacking feedback 28316 | -3/Research | Entered Armory 28324 | -3/Armory | Identified exit to Research 28447 | -3/Armory | Repaired Broken Imp. Diametric Drive? 28460 | -3/Armory | Fabricated Vibroblade? 28517 | -3/Armory | Central database locked down 28524 | -3/Armory | Entered Research 28524 | -2/Research | Warlord forces began assault on 0b10 28524 | -2/Research | Evolved 2 slots: Utility x1, Weapon x1 28529 | -2/Research | Identified exit to Quarantine 28529 | -2/Research | Identified exit to Access 28572 | -2/Research | Met up with Warlord 28634 | -2/Research | Research machine network offline 28686 | -2/Research | Lost 3 allies 28727 | -2/Research | Spotted B-90 Cyclops 28741 | -2/Research | Found Exp. Melee Analysis Suite 28755 | -2/Research | Entered Access 28755 | -1/Access | Evolved 2 slots: Utility x1, Weapon x1 28840 | -1/Access | Identified exit to Command 28842 | -1/Access | Identified exit to Surface 28842 | -1/Access | Central database locked down 28952 | -1/Access | Fabricated Exp. Actuator Array? 29037 | -1/Access | Fabricated Exp. Actuator Array? 29078 | -1/Access | Fabricated Femtoactuators? 29100 | -1/Access | Build established: Wizard-Ninja 29120 | -1/Access | Fabricated Exp. Utility Shielding? 29171 | -1/Access | Adv. Hacking Suite fried by hacking feedback 29596 | -1/Access | Build established: Hacker-Ninja 29680 | -1/Access | Repaired Broken Vibroblade 29708 | -1/Access | Repaired Exp. Utility Shielding 29946 | -1/Access | Repaired Exp. Propulsion Shielding 29958 | -1/Access | Entered Command 30102 | -1/Command | Disengaged cave seal 30102 | -1/Command | Derelicts emerged from the dark tunnel 30102 | -1/Command | Welcomed Warlord to Command 30103 | -1/Command | Repaired Centrium Medium Armor Plating? 30139 | -1/Command | Spotted B-99 Colossus 30211 | -1/Command | Found Exp. Thermal Shield 30257 | -1/Command | Lost 10 allies 30423 | -1/Command | Repaired Exp. Utility Shielding? 30507 | -1/Command | Adv. Hacking Suite fried by hacking feedback 30593 | -1/Command | Lost 3 parts (1p1u1w) 30845 | -1/Command | Build established: Hacker-Gladiator 30884 | -1/Command | Repaired Corrupted Phasing Sabre 31048 | -1/Command | Disengaged cave seal 31048 | -1/Command | Derelicts emerged from the dark tunnel 31220 | -1/Command | Warlord commented on Warlord statues 31237 | -1/Command | Spotted Combat Programmer 31241 | -1/Command | Spotted Combat Programmer 31248 | -1/Command | Build established: Scavenger-Gladiator 31258 | -1/Command | Spotted M Guard 31274 | -1/Command | Destroyed Combat Programmer 31277 | -1/Command | Destroyed Combat Programmer 31286 | -1/Command | All MAIN.C guards destroyed 31288 | -1/Command | Found Zero-point Reactor 31466 | -1/Command | Met MAIN.C 31468 | -1/Command | Warlord shut down involuntarily 31487 | -1/Command | 0b10 Conduit disabled 31504 | -1/Command | MAIN.C activated Command garrisons 31537 | -1/Command | Lost 4 allies 31537 | -1/Command | P-80 Master assimilated allied NJ-TF3(b) 31540 | -1/Command | Destroyed MAIN.C 31542 | -1/Command | Discovered exit to Surface (range 38) 31542 | -1/Command | Discovered exit to Surface (range 108) 31542 | -1/Command | Extracted map data and part IDs from MAIN.C's data core 31542 | -1/Command | P-80 Master assimilated allied F6-T94(b) 31549 | -1/Command | Found Exp. Powered Armor 31567 | -1/Command | System corruption reached 10% 31574 | -1/Command | Lost 12 parts (4n5u3w) 31670 | -1/Command | P-80 Master assimilated allied K-01 Serf 32045 | -1/Command | Found Cld. Nova Cannon 32283 | -1/Command | Found Enh. Force Lance 32610 | -1/Command | Found Exp. System Purifier 32867 | -1/Command | Found Zero-point Reactor 32910 | -1/Command | Found Exp. Melee Analysis Suite 32916 | -1/Command | Found Exp. Melee Analysis Suite 32920 | -1/Command | Found Exp. Core Analyzer 32924 | -1/Command | Found Exp. Focal Shield 33440 | -1/Command | Warped through subspace to slip node 33440 | -1/Command | Discovered new exit (range 5) 33451 | -1/Command | Entered Access_0 33453 | -1/Access_0 | Met Architect 33455 | -1/Access_0 | Core integrity fell below 50% 33464 | -1/Access_0 | Architect warped through subspace 33477 | -1/Access_0 | Destroyed A8 33504 | -1/Access_0 | Found Lgt. Regenerative Plating 33526 | -1/Access_0 | Architect warped through subspace 33550 | -1/Access_0 | Lost 3 parts (2u1w) 33565 | -1/Access_0 | Found Exp. Core Analyzer 33584 | -1/Access_0 | Architect warped through subspace 33625 | -1/Access_0 | Core integrity fell below 20% 33636 | -1/Access_0 | Architect warped through subspace 33655 | -1/Access_0 | Lost 6 parts (1n2u3w) 33674 | -1/Access_0 | Architect warped through subspace 33674 | -1/Access_0 | Released all parts (20) 33702 | -1/Access_0 | Subspace Access Node disabled 33706 | -1/Access_0 | A6 warped into view 33743 | -1/Access_0 | Found Hpw. Transdimensional Reconstructor 33743 | -1/Access_0 | Warped through subspace to slip node 33743 | -1/Access_0 | Discovered exit to Surface (range 8) 33746 | *** | Establishing 0b11! Last Messages --------------- 33706_ Penetrated by Quantum Shear. 33712_ Quantum Shear penetrates Wall. 33715_ Knocked back. 33715_ HV Slug penetrates Wall. 33715_ HV Slug penetrates Enhanced Hunter. 33715_ Enhanced Hunter suffers critical hit (Destroy). 33715_ Enhanced Hunter knocked back. 33717_ HV Slug penetrates Wall. 33725_ Quantum Shear penetrates Wall. 33741_ Workstation disabled. 33743_ Quantum Shear penetrates Workstation. 33743_ Acquired Hpw. Transdimensional Reconstructor. 33743_ Warped through subspace, drawn to slip node. 33743_ EXIT=FOUND: SURFACE 33745_ A0_RES: I have more important things to do than play hide-and-seek. Deal with this piece of junk if it returns. Map ----- +----------------------------------------------------+ | | | | | | | | | | | | | | | | | | | | | | | | | | | | | | | | | ?????????????????????????????????????????????????? | | ?????????????????????????????????????????????????? | | ?????????????????????????????????????????????????? | | ?????????????????????????????????????????????????? | | ?????????????????????????????????????????????????? | | ?????????????????????????????????????????????????? | | ????????????????????????###??????????????????????? | | ???????????????????????## ##?????????????????????? | | ???????????????????????# #?????????????????????? | | ???????????????????????# @ #?????????????????????? | | ??????????????????????## #?????????????????????? | | ??????????????????????# #?????????????????????? | | ??????????????????????# ##?????????????????????? | | ??????????????????????## #?????????????????????? | | ??????????????????????# #?????????????????????? | | ??????????????????????# ##?????????????????????? | | ??????????????????????# < #?????????????????????? | | ??????????????????????# ##?????????????????????? | | ??????????????????????## #??????????????????????? | | ???????????????????????####??????????????????????? | | ?????????????????????????????????????????????????? | | ?????????????????????????????????????????????????? | | ?????????????????????????????????????????????????? | | ?????????????????????????????????????????????????? | | ?????????????????????????????????????????????????? | | ?????????????????????????????????????????????????? | | ?????????????????????????????????????????????????? | | ?????????????????????????????????????????????????? | | ?????????????????????????????????????????????????? | | ?????????????????????????????????????????????????? | | ?????????????????????????????????????????????????? | | ?????????????????????????????????????????????????? | | ?????????????????????????????????????????????????? | | ?????????????????????????????????????????????????? | +----------------------------------------------------+ Best States ------------- Heat Dissipation 130 Coolant Potential 80 Energy Generation 43 Energy Capacity 840 Matter Stores 300 Matter Capacity 800 Sight Range 20 Terrain Scan Range 20 Terrain Scan Density 10 Jamming Range 16 Power Amplification 40 Additional Mass Support 9 Corruption Block 6 Armor Coverage 850 Resistance: KI 30 Resistance: TH 30 Power Shielding 90 Propulsion Shielding 90 Utility Shielding 90 Melee Speed Boost 50 Phase Shifting 5 Evasion (%) 66 Melee Accuracy 42 Target Analysis 12 Core Analysis 12 Armor Integrity Analysis 50 Recoil Reduction 4 Particle Charging 25 Offensive Hacking 66 Defensive Hacking 16 Authchip Count 3 Item Schematics ----------------- Combat Drone Bay | -7/Data Miner | Free Lgt. Regenerative Plating | -7/Data Miner | Free Cld. Aerolev Unit | -7/Data Miner | Free Exp. Utility Shielding | -7/Data Miner | Free Imp. Lightning Gun | -7/Data Miner | Free Hvy. Treads | -7/Data Miner | Free Imp. Launcher Guidance Computer | -7/Data Miner | Free Imp. Arc Projector | -7/Data Miner | Free Lrn. Missile Launcher | -7/Data Miner | Free Imp. Shock Absorption System | -7/Data Miner | Free Imp. Transmission Jammer | -7/Data Miner | Free Adv. Force Field | -5/Factory | Hacked Hvy. Armored Exoskeleton | -5/Factory | Hacked Adv. Hacking Suite | -5/Factory | Hacked Adv. Heavy Treads | -5/Factory | Hacked Centrium Wheel | -5/Factory | Hacked Centrium Medium Armor Plating | -5/Factory | Scanalyzed Centrium Heavy Treads | -5/Factory | Scanalyzed Quantum Reactor | -5/Factory | Scanalyzed Arm. Huge Wheel | -5/Factory | Scanalyzed Quantum Capacitor | -5/Factory | Hacked Q-thruster | -5/Factory | Hacked Adv. KE Penetrator | -5/Factory | Scanalyzed Adv. Variable Charge Gun | -5/Factory | Scanalyzed Phasing Sabre | -5/Factory | Scanalyzed Enh. Gauss Cannon | -5/Factory | Scanalyzed Huge Storage Unit | -5/Factory | Scanalyzed Shock Maul | -5/Factory | Scanalyzed Impact Mace | -5/Factory | Scanalyzed Bore Cannon | -5/Factory | Scanalyzed Hvy. Proton Missile Launcher | -5/Factory | Scanalyzed Prc. Rocket Launcher | -5/Factory | Scanalyzed Launcher Loader | -5/Factory | Scanalyzed Exp. Heat Sink | -5/Factory | Scanalyzed Imp. Proton Missile Launcher | -5/Factory | Scanalyzed Centrium Greatsword | -4/Factory | Hacked Vibroblade | -4/Factory | Hacked Adv. Datajack | -4/Factory | Hacked Adv. Actuator Array | -4/Factory | Hacked Nanoactuators | -4/Factory | Hacked Imp. Fusion Compressor | -4/Factory | Hacked Adv. Hardlight Generator | -4/Factory | Hacked Nova Cannon | -4/Factory | Hacked Exp. Hacking Suite | -4/Factory | Hacked Exp. System Shield | -4/Factory | Hacked Exp. Propulsion Shielding | -4/Factory | Scanalyzed Cld. Nuclear Pulse Thruster | -4/Factory | Scanalyzed 0b10 Decoder Chip [Generic] | -4/Factory | Scanalyzed Biometal Heavy Treads | -4/Factory | Hacked Imp. Armor Integrity Analyzer | -4/Factory | Hacked Adv. Surge Thruster | -4/Factory | Hacked Adv. Shield Generator | -4/Factory | Hacked Exp. Power Amplifier | -4/Factory | Scanalyzed Graphene Brace | -4/Factory | Scanalyzed Mic. Fission Core | -4/Factory | Scanalyzed Microactuators | -4/Factory | Scanalyzed Exp. Shield Generator | -4/Factory | Hacked Adv. Heavy Siege Treads | -4/Factory | Hacked Particle Reactor | -4/Factory | Hacked Impulse Thruster Array | -4/Factory | Hacked Imp. Force Field | -4/Factory | Hacked Enh. Nova Cannon | -4/Factory | Hacked Enh. Quantum Rifle | -4/Factory | Hacked Linear Accelerator | -4/Factory | Hacked Femtoactuators | -3/Research | Hacked Exp. Actuator Array | -3/Research | Hacked Exp. Core Analyzer | -3/Research | Hacked Imp. Diametric Drive | -3/Research | Scanalyzed Mak. Spear | -3/Research | Scanalyzed Cmb. Linear Gravjet | -3/Research | Hacked Hdn. Centrium Leg | -3/Research | Hacked Imp. Heavy Siege Treads | -3/Armory | Hacked Adv. Powered Armor | -3/Armory | Hacked Enh. Force Lance | -2/Research | Scanalyzed Stasis Canceller | -2/Research | Scanalyzed Adv. Transmission Jammer | -2/Research | Scanalyzed Zero-point Reactor | -1/Access | Hacked Rnf. Quantum Reactor | -1/Access | Hacked Centrium Leg | -1/Access | Hacked Imp. Utility Shielding | -1/Access | Scanalyzed Robot Schematics ------------------ B-48 Gladiator | -7/Factory | Hacked S-27 Virus | -7/Data Miner | Free I-36 Angel | -7/Data Miner | Free Y-54 Guardian | -7/Data Miner | Free L-41 Fighter | -7/Data Miner | Free G-50 Soldier | -6/Hub_04(d) | Hacked Y-72 Warden | -3/Research | Hacked X-77 Beamer | -3/Armory | Hacked Fabricated ------------ Combat Drone Bay | x1 | -6/Factory | Authchip Combat Drone Bay | x1 | -6/Factory Adv. Hacking Suite | x1 | -5/Factory Q-thruster | x2 | -5/Factory Exp. Utility Shielding | x1 | -5/Factory M-36 Artificer | x1 | -4/Factory | Preloaded Exp. Hacking Suite | x1 | -4/Factory | Authchip Exp. System Shield | x1 | -4/Factory Centrium Greatsword | x1 | -4/Factory | Authchip Femtoactuators | x1 | -3/Research Vibroblade | x1 | -3/Armory | Authchip Exp. Actuator Array | x1 | -1/Access | Authchip Exp. Actuator Array | x1 | -1/Access | Authchip Femtoactuators | x1 | -1/Access | Authchip Exp. Utility Shielding | x1 | -1/Access Alien Tech Used ----------------- Core Expander Integrated Reactor Transdimensional Reconstructor High-powered Transdimensional Reconstructor Achievements -------------- None Challenges ------------ None Game ------ Seed SkeletonArchitectChainsword Manual? 0 Play Time 07:32:06 Cumulative 682.9 hours Start 2024.04.01 @ 11:07:25 End 2024.04.04 @ 09:49:28 Sessions 7 Manual Loads 0 Difficulty Rogue Special Mode None Game No. 276 Rogue 248 Adventurer 3 Explorer 25 Win Type 1 Total 16 Types 10/3/1/1/0/1/0/0/0 Lore% 91 Gallery% 96 Achievement% 85 Wizard Run 0 Options --------- Layout 2 ASCII 0 Keyboard 0 Movement Mouse Keybinds 0 Fullscreen 2 Font 24/Smallcaps Map View 50x44 Zoom Use 0% Tactical HUD 1 Map Filters NONE Filters NONE Steam 1 RUN: 1349b438-5cf9-4001-9af5-5e28c0c04ee9